Workbook

Sheet Categorizacion Retroactiva
L1: =IF(M6="","",IF($I$4=0,0,IF($I$5=0,0,IF($I$6=0,0,IF($I$7=0,0,IF($I$8=0,0,MAX($I$4:$I$8))))))) -> 6
F2: Actividad | G2: Prestación de Servicios | I2: =VLOOKUP(G2,$AD$2:$AE$3,2,FALSE) -> 2 | J2: RECATEGORIZACION S/ TABLA 2020 | M2: =IF(M6="","",VLOOKUP(L1,$S$23:$T$34,2,FALSE)) -> F | Q2: 1- | R2: Elegir si se trata de Venta de Bs Muebles o Prestación de Servicios en la celda G2 | AD2: Venta de Bs. Muebles | AE2: 1 | AF2: =+F34 -> 2609240.69
L3: =IF(M6="","",IF($P$4=0,0,IF($P$5=0,0,IF($P$6=0,0,IF($P$7=0,0,IF($P$8=0,0,MAX($P$4:$P$8))))))) -> 5 | Q3: 2- | R3: Ingresar los datos de ingresos brutos anuales, superficie, energía eléctrica, alquileres y precio máximo unitario (de corresponder) en las celdas G4 a G8 | AD3: Prestación de Servicios | AE3: 2 | AF3: =+F31 -> 1739493.79
F4: Ingresos Brutos Últimos 12 Meses (ene a dic 2020) | G4: 913117 | H4: =IF(I2=1,IF(G4<=F24,"A",IF(G4<=F25,"B",IF(G4<=F26,"C",IF(G4<=F27,"D",IF(G4<=F28,"E",IF(G4<=F29,"F",IF(G4<=F30,"G",IF(G4<=F31,"H",IF(G4<=F32,"I",IF(G4<=F33,"J",IF(G4<=F34,"K","EXCLUIDO"))))))))))),IF(G4<=F24,"A",IF(G4<=F25,"B",IF(G4<=F26,"C",IF(G4<=F27,"D",IF(G4<=F28,"E",IF(G4<=F29,"F",IF(G4<=F30,"G",IF(G4<=F31,"H","EXCLUIDO"))))))))) -> F | I4: =IF(H4="EXCLUIDO",0,VLOOKUP(H4,$E$22:$S$34,15)) -> 6 | J4: RECATEGORIZACION S/ TABLA 2021 | M4: =IF(M6="","",VLOOKUP(L3,$S$40:$T$51,2,FALSE)) -> E | O4: =IF(I2=1,IF(G4<=F41,"A",IF(G4<=F42,"B",IF(G4<=F43,"C",IF(G4<=F44,"D",IF(G4<=F45,"E",IF(G4<=F46,"F",IF(G4<=F47,"G",IF(G4<=F48,"H",IF(G4<=F49,"I",IF(G4<=F50,"J",IF(G4<=F51,"K","EXCLUIDO"))))))))))),IF(G4<=F41,"A",IF(G4<=F42,"B",IF(G4<=F43,"C",IF(G4<=F44,"D",IF(G4<=F45,"E",IF(G4<=F46,"F",IF(G4<=F47,"G",IF(G4<=F48,"H","EXCLUIDO"))))))))) -> E | P4: =IF(O4="EXCLUIDO",0,VLOOKUP(O4,$E$22:$S$34,15)) -> 5 | Q4: 3- | R4: Elegir si ingresa cotizaciones previsionales fijas o solo abona impuesto integrado en la celda G9
F5: Sup. Afectada (en m2) | G5: 0 | H5: =IF(G5<=I24,"A",IF(G5<=I25,"B",IF(G5<=I26,"C",IF(G5<=I27,"D",IF(G5<=I28,"E",IF(G5<=I29,"F",IF(G5<=I30,"G",IF(G5<=I31,"H",IF(G5<=I32,"I",IF(G5<=I33,"J",IF(G5<=I34,"K","EXCLUIDO"))))))))))) -> A | I5: =IF(H5="EXCLUIDO",0,VLOOKUP(H5,$E$22:$S$34,15)) -> 1 | K5: Desde | L5: =+L6-M6 ->  | O5: =IF(G5<=I41,"A",IF(G5<=I42,"B",IF(G5<=I43,"C",IF(G5<=I44,"D",IF(G5<=I45,"E",IF(G5<=I46,"F",IF(G5<=I47,"G",IF(G5<=I48,"H",IF(G5<=I49,"I",IF(G5<=I50,"J",IF(G5<=I51,"K","EXCLUIDO"))))))))))) -> A | P5: =IF(O5="EXCLUIDO",0,VLOOKUP(O5,$E$22:$S$34,15)) -> 1 | Q5: 4- | R5: Informar categoría declarada al 31/12/2020 en la celda M6
F6: Energía Eléctrica Consumida (en kw) | G6: 0 | H6: =IF(G6<=J24,"A",IF(G6<=J25,"B",IF(G6<=J26,"C",IF(G6<=J27,"D",IF(G6<=J28,"E",IF(G6<=J29,"F",IF(G6<=J30,"G",IF(G6<=J31,"H",IF(G6<=J32,"I",IF(G6<=J33,"J",IF(G6<=J34,"K","EXCLUIDO"))))))))))) -> A | I6: =IF(H6="EXCLUIDO",0,VLOOKUP(H6,$E$22:$S$34,15)) -> 1 | J6: CAT. DECLARADA AL 31/12/2020 | M6: F | O6: =IF(G6<=J41,"A",IF(G6<=J42,"B",IF(G6<=J43,"C",IF(G6<=J44,"D",IF(G6<=J45,"E",IF(G6<=J46,"F",IF(G6<=J47,"G",IF(G6<=J48,"H",IF(G6<=J49,"I",IF(G6<=J50,"J",IF(G6<=J51,"K","EXCLUIDO"))))))))))) -> A | P6: =IF(O6="EXCLUIDO",0,VLOOKUP(O6,$E$22:$S$34,15)) -> 1 | Q6: 5- | R6: Informar categoría declarada al 31/05/2021 en la celda M8
F7: Alquileres Devengados | G7: 0 | H7: =IF(G7<=K24,"A",IF(G7<=K25,"B",IF(G7<=K26,"C",IF(G7<=K27,"D",IF(G7<=K28,"E",IF(G7<=K29,"F",IF(G7<=K30,"G",IF(G7<=K31,"H",IF(G7<=K32,"I",IF(G7<=K33,"J",IF(G7<=K34,"K","EXCLUIDO"))))))))))) -> A | I7: =IF(H7="EXCLUIDO",0,VLOOKUP(H7,$E$22:$S$34,15)) -> 1 | O7: =IF(G7<=K41,"A",IF(G7<=K42,"B",IF(G7<=K43,"C",IF(G7<=K44,"D",IF(G7<=K45,"E",IF(G7<=K46,"F",IF(G7<=K47,"G",IF(G7<=K48,"H",IF(G7<=K49,"I",IF(G7<=K50,"J",IF(G7<=K51,"K","EXCLUIDO"))))))))))) -> A | P7: =IF(O7="EXCLUIDO",0,VLOOKUP(O7,$E$22:$S$34,15)) -> 1
F8: Precio unitario máximo | G8: 10000 | H8: =IF(I2=2,"",IF(G8<=L24,"OK","EXCLUIDO")) ->  | I8: =IF(H8="EXCLUIDO",0,1) -> 1 | J8: CAT. DECLARADA AL 31/05/2021 | M8: F | O8: =IF(G2=2,"",IF(G8<=L41,"OK","EXCLUIDO")) -> OK | P8: =IF(O8="EXCLUIDO",0,1) -> 1 | Q8: NOTA | R8: En caso de resultar excluido s/ tablas 2021 por los importes y parámetros indicados, no se calcularán las diferencias
F9: ¿Ingresa cotizaciones previsionales fijas? | G9: Si
J10: PERÍODOS | L10: CATEGORÍA | M10: IMP. INTEG. | N10: APORTE SIPA | O10: APORTE OS | P10: TOTAL MES | Q10: TOTAL
F11: Tope 25% Última Categoría | G11: =IF(I2=1,F34*1.25,F31*1.25) -> 2174367.237 | K11: ene-21 s/ tabla 2020 | L11: =+M6 -> F | M11: =VLOOKUP(M6,$E$24:$P$34,IF(I2=1,10,9),FALSE) -> 2393.05 | N11: =IF(G9="no",0,VLOOKUP(M6,$E$24:$P$34,11,FALSE)) -> 1200.62 | O11: =IF(G9="no",0,VLOOKUP(M6,$E$24:$P$34,12,FALSE)) -> 1041.22 | P11: =SUM(M11:O11) -> 4634.89 | Q11: =+P11 -> 4634.89 | R11: total pagado s/ tabla vieja
K12: ene-21 s/ tabla 2021 | L12: =+L11 -> F | M12: =VLOOKUP(M6,$E$41:$P$51,IF(I2=1,10,9),FALSE) -> 3238.03 | N12: =IF(G9="no",0,VLOOKUP(M6,$E$41:$P$51,11,FALSE)) -> 1624.56 | O12: =IF(G9="no",0,VLOOKUP(M6,$E$41:$P$51,12,FALSE)) -> 1408.87 | P12: =SUM(M12:O12) -> 6271.46 | Q12: =+P12 -> 6271.46 | R12: total a pagar s/ nueva tabla
F13: ¿Puede volver al Monotributo? | G13: =IF(G11>=G4,"SI","NO") -> SI | J13: DIFERENCIA | M13: =+M12-M11 -> 844.98 | N13: =+N12-N11 -> 423.94 | O13: =+O12-O11 -> 367.65 | P13: =SUM(M13:O13) -> 1636.57 | Q13: =+P13 -> 1636.57
K14: feb-21 a may-21 s/ tabla 2020 | L14: =+M8 -> F | M14: =IF(L14="excluido",0,VLOOKUP(M8,$E$24:$P$34,IF(I2=1,10,9),FALSE)) -> 2393.05 | N14: =IF(G9="no",0,VLOOKUP(M8,$E$24:$P$34,11,FALSE)) -> 1200.62 | O14: =IF(G9="no",0,VLOOKUP(M8,$E$24:$P$34,12,FALSE)) -> 1041.22 | P14: =SUM(M14:O14) -> 4634.89 | Q14: =+P14*4 -> 18539.56 | R14: total pagado s/ tabla vieja
K15: feb-21 a may-21 s/ tabla 2021 | L15: =IF(M4="excluido",+M8,M4) -> E | M15: =IF(L15="excluido",0,VLOOKUP(M4,$E$41:$P$51,IF(I2=1,10,9),FALSE)) -> 2353.69 | N15: =IF(L15="excluido",0,IF(G9="no",0,VLOOKUP(M4,$E$41:$P$51,11,FALSE))) -> 1476.88 | O15: =IF(L15="excluido",0,IF(G9="no",0,VLOOKUP(M4,$E$41:$P$51,12,FALSE))) -> 1408.87 | P15: =SUM(M15:O15) -> 5239.44 | Q15: =+P15*4 -> 20957.76 | R15: total a pagar s/ nueva tabla
J16: DIFERENCIA | M16: =+M15-M14 -> -39.36 | N16: =+N15-N14 -> 276.26 | O16: =+O15-O14 -> 367.65 | P16: =SUM(M16:O16) -> 604.55 | Q16: =+P16*4 -> 2418.2
E17: IMPORTANTE! Las diferencias se podrán ingresar, sin intereses, hasta el 20/7/2021 | J17: DIFERENCIA | M17: =+M13+M16 -> 805.62 | N17: =+N13+N16 -> 700.2 | O17: =+O13+O16 -> 735.3 | P17: =+P13+P16 -> 2241.12 | Q17: =+Q13+Q16 -> 4054.77 | R17: =IF(Q17>0,"A FAVOR AFIP","A FAVOR CONTRIBUYENTE") -> A FAVOR AFIP
U18: TOPE
E19: CATEGORIAS VIGENTES 2020 | U19: =IF(I2=1,F34*0.8,F31*0.4) -> 695797.516
B20: Fecha Inicial | C20: Fecha Final | D20: Días | Y20: CATEGORÍA ACTUAL
B21: =IF(#REF!="","",+C21-D21) ->  | C21: =IF(#REF!="","",+#REF!) ->  | D21: =IF(#REF!="","",IF(C21>44256,365,364)) ->  | W21: =IF(#REF!="","",IF(V21="EXCLUIDO",0,VLOOKUP(V21,$E$22:$S$34,15))) ->  | X21: =IF(#REF!="","",IF($I$4=0,0,IF($I$5=0,0,IF($I$6=0,0,IF($I$7=0,0,IF($I$8=0,0,MAX($I$4:$I$8))))))) ->  | Y21: =IF(#REF!="",IF(#REF!="","",VLOOKUP(X21,$S$23:$T$34,2,FALSE)),"") -> 
B22: =IF(#REF!="","",+C22-D22) ->  | C22: =IF(#REF!="","",+#REF!) ->  | D22: =IF(#REF!="","",IF(C22>44256,365,364)) ->  | E22: Categ. | F22: Ingresos Brutos | G22: Actividad | H22: Cantidad Mínima de Empleados | I22: Sup. Afectada (*) | J22: Energía Eléctrica Consumida Anualmente | K22: Alquileres Devengados Anualmente | L22: Precio unitario máximo para venta de Cosas Muebles | M22: Impuesto Integrado | O22: Aportes al SIPA (**) | P22: Aportes Obra Social (***) | Q22: Total | W22: =IF(#REF!="","",IF(V22="EXCLUIDO",0,VLOOKUP(V22,$E$22:$S$34,15))) ->  | X22: =IF(#REF!="","",IF($I$4=0,0,IF($I$5=0,0,IF($I$6=0,0,IF($I$7=0,0,IF($I$8=0,0,MAX($I$4:$I$8))))))) ->  | Y22: =IF(#REF!="",IF(#REF!="","",VLOOKUP(X22,$S$23:$T$34,2,FALSE)),"") -> 
B23: =IF(#REF!="","",+C23-D23) ->  | C23: =IF(#REF!="","",+#REF!) ->  | D23: =IF(#REF!="","",IF(C23>44256,365,364)) ->  | M23: Locaciones y/o Prestaciones de Servicios | N23: Venta de Cosas Muebles | Q23: Locaciones y/o prestaciones de servicios | R23: Venta de Cosas Muebles | S23: 0 | T23: EXCLUIDO | W23: =IF(#REF!="","",IF(V23="EXCLUIDO",0,VLOOKUP(V23,$E$22:$S$34,15))) ->  | X23: =IF(#REF!="","",IF($I$4=0,0,IF($I$5=0,0,IF($I$6=0,0,IF($I$7=0,0,IF($I$8=0,0,MAX($I$4:$I$8))))))) ->  | Y23: =IF(#REF!="",IF(#REF!="","",VLOOKUP(X23,$S$23:$T$34,2,FALSE)),"") -> 
B24: =IF(#REF!="","",+C24-D24) ->  | C24: =IF(#REF!="","",+#REF!) ->  | D24: =IF(#REF!="","",IF(C24>44256,365,364)) ->  | E24: A | F24: 208739.25 | G24: No excluida | H24: No requiere | I24: 30 | J24: 3330 | K24: 78277.23 | L24: 29119.56 | M24: 168.97 | N24: 168.97 | O24: 745.49 | P24: 1041.22 | Q24: 1955.68 | R24: 1955.68 | S24: 1 | T24: =+E24 -> A | W24: =IF(#REF!="","",IF(V24="EXCLUIDO",0,VLOOKUP(V24,$E$22:$S$34,15))) ->  | X24: =IF(#REF!="","",IF($I$4=0,0,IF($I$5=0,0,IF($I$6=0,0,IF($I$7=0,0,IF($I$8=0,0,MAX($I$4:$I$8))))))) ->  | Y24: =IF(#REF!="",IF(#REF!="","",VLOOKUP(X24,$S$23:$T$34,2,FALSE)),"") -> 
B25: =IF(#REF!="","",+C25-D25) ->  | C25: =IF(#REF!="","",+#REF!) ->  | D25: =IF(#REF!="","",IF(C25>44256,365,364)) ->  | E25: B | F25: 313108.87 | G25: No excluida | H25: No requiere | I25: 45 | J25: 5000 | K25: 78277.23 | L25: 29119.56 | M25: 325.54 | N25: 325.54 | O25: 820.04 | P25: 1041.22 | Q25: 2186.8 | R25: 2186.8 | S25: 2 | T25: =+E25 -> B | W25: =IF(#REF!="","",IF(V25="EXCLUIDO",0,VLOOKUP(V25,$E$22:$S$34,15))) ->  | X25: =IF(#REF!="","",IF($I$4=0,0,IF($I$5=0,0,IF($I$6=0,0,IF($I$7=0,0,IF($I$8=0,0,MAX($I$4:$I$8))))))) ->  | Y25: =IF(#REF!="",IF(#REF!="","",VLOOKUP(X25,$S$23:$T$34,2,FALSE)),"") -> 
B26: =IF(#REF!="","",+C26-D26) ->  | C26: =IF(#REF!="","",+#REF!) ->  | D26: =IF(#REF!="","",IF(C26>44256,365,364)) ->  | E26: C | F26: 417478.51 | G26: No excluida | H26: No requiere | I26: 60 | J26: 6700 | K26: 156554.44 | L26: 29119.56 | M26: 556.64 | N26: 514.38 | O26: 902.05 | P26: 1041.22 | Q26: 2499.91 | R26: 2457.65 | S26: 3 | T26: =+E26 -> C | W26: =IF(#REF!="","",IF(V26="EXCLUIDO",0,VLOOKUP(V26,$E$22:$S$34,15))) ->  | X26: =IF(#REF!="","",IF($I$4=0,0,IF($I$5=0,0,IF($I$6=0,0,IF($I$7=0,0,IF($I$8=0,0,MAX($I$4:$I$8))))))) ->  | Y26: =IF(#REF!="",IF(#REF!="","",VLOOKUP(X26,$S$23:$T$34,2,FALSE)),"") -> 
B27: =IF(#REF!="","",+C27-D27) ->  | C27: =IF(#REF!="","",+#REF!) ->  | D27: =IF(#REF!="","",IF(C27>44256,365,364)) ->  | E27: D | F27: 626217.78 | G27: No excluida | H27: No requiere | I27: 85 | J27: 10000 | K27: 156554.44 | L27: 29119.56 | M27: 914.47 | N27: 844.9 | O27: 992.25 | P27: 1041.22 | Q27: 2947.94 | R27: 2878.37 | S27: 4 | T27: =+E27 -> D | W27: =IF(#REF!="","",IF(V27="EXCLUIDO",0,VLOOKUP(V27,$E$22:$S$34,15))) ->  | X27: =IF(#REF!="","",IF($I$4=0,0,IF($I$5=0,0,IF($I$6=0,0,IF($I$7=0,0,IF($I$8=0,0,MAX($I$4:$I$8))))))) ->  | Y27: =IF(#REF!="",IF(#REF!="","",VLOOKUP(X27,$S$23:$T$34,2,FALSE)),"") -> 
B28: =IF(#REF!="","",+C28-D28) ->  | C28: =IF(#REF!="","",+#REF!) ->  | D28: =IF(#REF!="","",IF(C28>44256,365,364)) ->  | E28: E | F28: 834957 | G28: No excluida | H28: No requiere | I28: 110 | J28: 13000 | K28: 195071.79 | L28: 29119.56 | M28: 1739.48 | N28: 1349.34 | O28: 1091.48 | P28: 1041.22 | Q28: 3872.18 | R28: 3482.04 | S28: 5 | T28: =+E28 -> E | W28: =IF(#REF!="","",IF(V28="EXCLUIDO",0,VLOOKUP(V28,$E$22:$S$34,15))) ->  | X28: =IF(#REF!="","",IF($I$4=0,0,IF($I$5=0,0,IF($I$6=0,0,IF($I$7=0,0,IF($I$8=0,0,MAX($I$4:$I$8))))))) ->  | Y28: =IF(#REF!="",IF(#REF!="","",VLOOKUP(X28,$S$23:$T$34,2,FALSE)),"") -> 
B29: =IF(#REF!="","",+C29-D29) ->  | C29: =IF(#REF!="","",+#REF!) ->  | D29: =IF(#REF!="","",IF(C29>44256,365,364)) ->  | E29: F | F29: 1043696.27 | G29: No excluida | H29: No requiere | I29: 150 | J29: 16500 | K29: 195693.03 | L29: 29119.56 | M29: 2393.05 | N29: 1761.85 | O29: 1200.62 | P29: 1041.22 | Q29: 4634.89 | R29: 4003.69 | S29: 6 | T29: =+E29 -> F | W29: =IF(#REF!="","",IF(V29="EXCLUIDO",0,VLOOKUP(V29,$E$22:$S$34,15))) ->  | X29: =IF(#REF!="","",IF($I$4=0,0,IF($I$5=0,0,IF($I$6=0,0,IF($I$7=0,0,IF($I$8=0,0,MAX($I$4:$I$8))))))) ->  | Y29: =IF(#REF!="",IF(#REF!="","",VLOOKUP(X29,$S$23:$T$34,2,FALSE)),"") -> 
B30: =IF(#REF!="","",+C30-D30) ->  | C30: =IF(#REF!="","",+#REF!) ->  | D30: =IF(#REF!="","",IF(C30>44256,365,364)) ->  | E30: G | F30: 1252435.53 | G30: No excluida | H30: No requiere | I30: 200 | J30: 20000 | K30: 234831.66 | L30: 29119.56 | M30: 3044.12 | N30: 2196.71 | O30: 1320.68 | P30: 1041.22 | Q30: 5406.02 | R30: 4558.61 | S30: 7 | T30: =+E30 -> G | W30: =IF(#REF!="","",IF(V30="EXCLUIDO",0,VLOOKUP(V30,$E$22:$S$34,15))) ->  | X30: =IF(#REF!="","",IF($I$4=0,0,IF($I$5=0,0,IF($I$6=0,0,IF($I$7=0,0,IF($I$8=0,0,MAX($I$4:$I$8))))))) ->  | Y30: =IF(#REF!="",IF(#REF!="","",VLOOKUP(X30,$S$23:$T$34,2,FALSE)),"") -> 
B31: =IF(#REF!="","",+C31-D31) ->  | C31: =IF(#REF!="","",+#REF!) ->  | D31: =IF(#REF!="","",IF(C31>44256,365,364)) ->  | E31: H | F31: 1739493.79 | G31: No excluida | H31: No requiere | I31: 200 | J31: 20000 | K31: 313108.87 | L31: 29119.56 | M31: 6957.96 | N31: 5392.44 | O31: 1452.75 | P31: 1041.22 | Q31: 9451.93 | R31: 7886.41 | S31: 8 | T31: =+E31 -> H | W31: =IF(#REF!="","",IF(V31="EXCLUIDO",0,VLOOKUP(V31,$E$22:$S$34,15))) ->  | X31: =IF(#REF!="","",IF($I$4=0,0,IF($I$5=0,0,IF($I$6=0,0,IF($I$7=0,0,IF($I$8=0,0,MAX($I$4:$I$8))))))) ->  | Y31: =IF(#REF!="",IF(#REF!="","",VLOOKUP(X31,$S$23:$T$34,2,FALSE)),"") -> 
B32: =IF(#REF!="","",+C32-D32) ->  | C32: =IF(#REF!="","",+#REF!) ->  | D32: =IF(#REF!="","",IF(C32>44256,365,364)) ->  | E32: I | F32: 2043905.21 | G32: Venta de Bs. muebles | H32: No requiere | I32: 200 | J32: 20000 | K32: 313108.87 | L32: 29119.56 | M32: 0 | N32: 8697.46 | O32: 1598.03 | P32: 1041.22 | Q32: 0 | R32: 11336.71 | S32: 9 | T32: =+E32 -> I | W32: =IF(#REF!="","",IF(V32="EXCLUIDO",0,VLOOKUP(V32,$E$22:$S$34,15))) ->  | X32: =IF(#REF!="","",IF($I$4=0,0,IF($I$5=0,0,IF($I$6=0,0,IF($I$7=0,0,IF($I$8=0,0,MAX($I$4:$I$8))))))) ->  | Y32: =IF(#REF!="",IF(#REF!="","",VLOOKUP(X32,$S$23:$T$34,2,FALSE)),"") -> 
B33: =IF(#REF!="","",+C33-D33) ->  | C33: =IF(#REF!="","",+#REF!) ->  | D33: =IF(#REF!="","",IF(C33>44256,365,364)) ->  | E33: J | F33: 2348316.62 | G33: Venta de Bs. muebles | H33: No requiere | I33: 200 | J33: 20000 | K33: 313108.87 | L33: 29119.56 | M33: 0 | N33: 10220.77 | O33: 1757.84 | P33: 1041.22 | Q33: 0 | R33: 13019.83 | S33: 10 | T33: =+E33 -> J | W33: =IF(#REF!="","",IF(V33="EXCLUIDO",0,VLOOKUP(V33,$E$22:$S$34,15))) ->  | X33: =IF(#REF!="","",IF($I$4=0,0,IF($I$5=0,0,IF($I$6=0,0,IF($I$7=0,0,IF($I$8=0,0,MAX($I$4:$I$8))))))) ->  | Y33: =IF(#REF!="",IF(#REF!="","",VLOOKUP(X33,$S$23:$T$34,2,FALSE)),"") -> 
B34: =IF(#REF!="","",+C34-D34) ->  | C34: =IF(#REF!="","",+#REF!) ->  | D34: =IF(#REF!="","",IF(C34>44256,365,364)) ->  | E34: K | F34: 2609240.69 | G34: Venta de Bs. muebles | H34: No requiere | I34: 200 | J34: 20000 | K34: 313108.87 | L34: 29119.56 | M34: 0 | N34: 11741.58 | O34: 1933.61 | P34: 1041.22 | Q34: 0 | R34: 14716.41 | S34: 11 | T34: =+E34 -> K | W34: =IF(#REF!="","",IF(V34="EXCLUIDO",0,VLOOKUP(V34,$E$22:$S$34,15))) ->  | X34: =IF(#REF!="","",IF($I$4=0,0,IF($I$5=0,0,IF($I$6=0,0,IF($I$7=0,0,IF($I$8=0,0,MAX($I$4:$I$8))))))) ->  | Y34: =IF(#REF!="",IF(#REF!="","",VLOOKUP(X34,$S$23:$T$34,2,FALSE)),"") -> 
B35: =IF(#REF!="","",+C35-D35) ->  | C35: =IF(#REF!="","",+#REF!) ->  | D35: =IF(#REF!="","",IF(C35>44256,365,364)) ->  | W35: =IF(#REF!="","",IF(V35="EXCLUIDO",0,VLOOKUP(V35,$E$22:$S$34,15))) ->  | X35: =IF(#REF!="","",IF($I$4=0,0,IF($I$5=0,0,IF($I$6=0,0,IF($I$7=0,0,IF($I$8=0,0,MAX($I$4:$I$8))))))) ->  | Y35: =IF(#REF!="",IF(#REF!="","",VLOOKUP(X35,$S$23:$T$34,2,FALSE)),"") -> 
B36: =IF(#REF!="","",+C36-D36) ->  | C36: =IF(#REF!="","",+#REF!) ->  | D36: =IF(#REF!="","",IF(C36>44256,365,364)) ->  | E36: CATEGORIAS VIGENTES 2021 | W36: =IF(#REF!="","",IF(V36="EXCLUIDO",0,VLOOKUP(V36,$E$22:$S$34,15))) ->  | X36: =IF(#REF!="","",IF($I$4=0,0,IF($I$5=0,0,IF($I$6=0,0,IF($I$7=0,0,IF($I$8=0,0,MAX($I$4:$I$8))))))) ->  | Y36: =IF(#REF!="",IF(#REF!="","",VLOOKUP(X36,$S$23:$T$34,2,FALSE)),"") -> 
B37: =IF(#REF!="","",+C37-D37) ->  | C37: =IF(#REF!="","",+#REF!) ->  | D37: =IF(#REF!="","",IF(C37>44256,365,364)) ->  | W37: =IF(#REF!="","",IF(V37="EXCLUIDO",0,VLOOKUP(V37,$E$22:$S$34,15))) ->  | X37: =IF(#REF!="","",IF($I$4=0,0,IF($I$5=0,0,IF($I$6=0,0,IF($I$7=0,0,IF($I$8=0,0,MAX($I$4:$I$8))))))) ->  | Y37: =IF(#REF!="",IF(#REF!="","",VLOOKUP(X37,$S$23:$T$34,2,FALSE)),"") -> 
B38: =IF(#REF!="","",+C38-D38) ->  | C38: =IF(#REF!="","",+#REF!) ->  | D38: =IF(#REF!="","",IF(C38>44256,365,364)) ->  | W38: =IF(#REF!="","",IF(V38="EXCLUIDO",0,VLOOKUP(V38,$E$22:$S$34,15))) ->  | X38: =IF(#REF!="","",IF($I$4=0,0,IF($I$5=0,0,IF($I$6=0,0,IF($I$7=0,0,IF($I$8=0,0,MAX($I$4:$I$8))))))) ->  | Y38: =IF(#REF!="",IF(#REF!="","",VLOOKUP(X38,$S$23:$T$34,2,FALSE)),"") -> 
B39: =IF(#REF!="","",+C39-D39) ->  | C39: =IF(#REF!="","",+#REF!) ->  | D39: =IF(#REF!="","",IF(C39>44256,365,364)) ->  | E39: Categ. | F39: Ingresos Brutos | G39: Actividad | H39: Cantidad Mínima de Empleados | I39: Sup. Afectada (*) | J39: Energía Eléctrica Consumida Anualmente | K39: Alquileres Devengados Anualmente | L39: Precio unitario máximo para venta de Cosas Muebles | M39: Impuesto Integrado | O39: Aportes al SIPA (**) | P39: Aportes Obra Social (***) | Q39: Total | W39: =IF(#REF!="","",IF(V39="EXCLUIDO",0,VLOOKUP(V39,$E$22:$S$34,15))) ->  | X39: =IF(#REF!="","",IF($I$4=0,0,IF($I$5=0,0,IF($I$6=0,0,IF($I$7=0,0,IF($I$8=0,0,MAX($I$4:$I$8))))))) ->  | Y39: =IF(#REF!="",IF(#REF!="","",VLOOKUP(X39,$S$23:$T$34,2,FALSE)),"") -> 
B40: =IF(#REF!="","",+C40-D40) ->  | C40: =IF(#REF!="","",+#REF!) ->  | D40: =IF(#REF!="","",IF(C40>44256,365,364)) ->  | M40: Locaciones y/o Prestaciones de Servicios | N40: Venta de Cosas Muebles | Q40: Locaciones y/o prestaciones de servicios | R40: Venta de Cosas Muebles | S40: 0 | T40: EXCLUIDO | W40: =IF(#REF!="","",IF(V40="EXCLUIDO",0,VLOOKUP(V40,$E$22:$S$34,15))) ->  | X40: =IF(#REF!="","",IF($I$4=0,0,IF($I$5=0,0,IF($I$6=0,0,IF($I$7=0,0,IF($I$8=0,0,MAX($I$4:$I$8))))))) ->  | Y40: =IF(#REF!="",IF(#REF!="","",VLOOKUP(X40,$S$23:$T$34,2,FALSE)),"") -> 
B41: =IF(#REF!="","",+C41-D41) ->  | C41: =IF(#REF!="","",+#REF!) ->  | D41: =IF(#REF!="","",IF(C41>44256,365,364)) ->  | E41: A | F41: 282444.69 | G41: No excluida | H41: No requiere | I41: 30 | J41: 3330 | K41: 105916.77 | L41: 39401.62 | M41: 228.63 | N41: 228.63 | O41: 1008.72 | P41: 1408.87 | Q41: 2646.22 | R41: 2646.22 | S41: 1 | T41: =+E41 -> A | W41: =IF(#REF!="","",IF(V41="EXCLUIDO",0,VLOOKUP(V41,$E$22:$S$34,15))) ->  | X41: =IF(#REF!="","",IF($I$4=0,0,IF($I$5=0,0,IF($I$6=0,0,IF($I$7=0,0,IF($I$8=0,0,MAX($I$4:$I$8))))))) ->  | Y41: =IF(#REF!="",IF(#REF!="","",VLOOKUP(X41,$S$23:$T$34,2,FALSE)),"") -> 
B42: =IF(#REF!="","",+C42-D42) ->  | C42: =IF(#REF!="","",+#REF!) ->  | D42: =IF(#REF!="","",IF(C42>44256,365,364)) ->  | E42: B | F42: 423667.03 | G42: No excluida | H42: No requiere | I42: 45 | J42: 5000 | K42: 105916.77 | L42: 39401.62 | M42: 440.49 | N42: 440.49 | O42: 1109.59 | P42: 1408.87 | Q42: 2958.95 | R42: 2958.95 | S42: 2 | T42: =+E42 -> B | W42: =IF(#REF!="","",IF(V42="EXCLUIDO",0,VLOOKUP(V42,$E$22:$S$34,15))) ->  | X42: =IF(#REF!="","",IF($I$4=0,0,IF($I$5=0,0,IF($I$6=0,0,IF($I$7=0,0,IF($I$8=0,0,MAX($I$4:$I$8))))))) ->  | Y42: =IF(#REF!="",IF(#REF!="","",VLOOKUP(X42,$S$23:$T$34,2,FALSE)),"") -> 
B43: =IF(#REF!="","",+C43-D43) ->  | C43: =IF(#REF!="","",+#REF!) ->  | D43: =IF(#REF!="","",IF(C43>44256,365,364)) ->  | E43: C | F43: 564889.4 | G43: No excluida | H43: No requiere | I43: 60 | J43: 6700 | K43: 211833.52 | L43: 39401.62 | M43: 753.19 | N43: 696.01 | O43: 1220.56 | P43: 1408.87 | Q43: 3382.62 | R43: 3325.44 | S43: 3 | T43: =+E43 -> C | W43: =IF(#REF!="","",IF(V43="EXCLUIDO",0,VLOOKUP(V43,$E$22:$S$34,15))) ->  | X43: =IF(#REF!="","",IF($I$4=0,0,IF($I$5=0,0,IF($I$6=0,0,IF($I$7=0,0,IF($I$8=0,0,MAX($I$4:$I$8))))))) ->  | Y43: =IF(#REF!="",IF(#REF!="","",VLOOKUP(X43,$S$23:$T$34,2,FALSE)),"") -> 
B44: =IF(#REF!="","",+C44-D44) ->  | C44: =IF(#REF!="","",+#REF!) ->  | D44: =IF(#REF!="","",IF(C44>44256,365,364)) ->  | E44: D | F44: 847334.12 | G44: No excluida | H44: No requiere | I44: 85 | J44: 10000 | K44: 211833.52 | L44: 39401.62 | M44: 1237.37 | N44: 1143.23 | O44: 1342.61 | P44: 1408.87 | Q44: 3988.85 | R44: 3894.71 | S44: 4 | T44: =+E44 -> D | W44: =IF(#REF!="","",IF(V44="EXCLUIDO",0,VLOOKUP(V44,$E$22:$S$34,15))) ->  | X44: =IF(#REF!="","",IF($I$4=0,0,IF($I$5=0,0,IF($I$6=0,0,IF($I$7=0,0,IF($I$8=0,0,MAX($I$4:$I$8))))))) ->  | Y44: =IF(#REF!="",IF(#REF!="","",VLOOKUP(X44,$S$23:$T$34,2,FALSE)),"") -> 
B45: =IF(#REF!="","",+C45-D45) ->  | C45: =IF(#REF!="","",+#REF!) ->  | D45: =IF(#REF!="","",IF(C45>44256,365,364)) ->  | E45: E | F45: 1129778.77 | G45: No excluida | H45: No requiere | I45: 110 | J45: 13000 | K45: 263951.28 | L45: 39401.62 | M45: 2353.69 | N45: 1825.79 | O45: 1476.88 | P45: 1408.87 | Q45: 5239.44 | R45: 4711.54 | S45: 5 | T45: =+E45 -> E | W45: =IF(#REF!="","",IF(V45="EXCLUIDO",0,VLOOKUP(V45,$E$22:$S$34,15))) ->  | X45: =IF(#REF!="","",IF($I$4=0,0,IF($I$5=0,0,IF($I$6=0,0,IF($I$7=0,0,IF($I$8=0,0,MAX($I$4:$I$8))))))) ->  | Y45: =IF(#REF!="",IF(#REF!="","",VLOOKUP(X45,$S$23:$T$34,2,FALSE)),"") -> 
B46: =IF(#REF!="","",+C46-D46) ->  | C46: =IF(#REF!="","",+#REF!) ->  | D46: =IF(#REF!="","",IF(C46>44256,365,364)) ->  | E46: F | F46: 1412223.49 | G46: No excluida | H46: No requiere | I46: 150 | J46: 16500 | K46: 264791.88 | L46: 39401.62 | M46: 3238.03 | N46: 2383.95 | O46: 1624.56 | P46: 1408.87 | Q46: 6271.46 | R46: 5417.38 | S46: 6 | T46: =+E46 -> F | W46: =IF(#REF!="","",IF(V46="EXCLUIDO",0,VLOOKUP(V46,$E$22:$S$34,15))) ->  | X46: =IF(#REF!="","",IF($I$4=0,0,IF($I$5=0,0,IF($I$6=0,0,IF($I$7=0,0,IF($I$8=0,0,MAX($I$4:$I$8))))))) ->  | Y46: =IF(#REF!="",IF(#REF!="","",VLOOKUP(X46,$S$23:$T$34,2,FALSE)),"") -> 
B47: =IF(#REF!="","",+C47-D47) ->  | C47: =IF(#REF!="","",+#REF!) ->  | D47: =IF(#REF!="","",IF(C47>44256,365,364)) ->  | E47: G | F47: 1694668.19 | G47: No excluida | H47: No requiere | I47: 200 | J47: 20000 | K47: 317750.28 | L47: 39401.62 | M47: 4118.99 | N47: 2972.36 | O47: 1787.01 | P47: 1408.87 | Q47: 7314.87 | R47: 6168.24 | S47: 7 | T47: =+E47 -> G | W47: =IF(#REF!="","",IF(V47="EXCLUIDO",0,VLOOKUP(V47,$E$22:$S$34,15))) ->  | X47: =IF(#REF!="","",IF($I$4=0,0,IF($I$5=0,0,IF($I$6=0,0,IF($I$7=0,0,IF($I$8=0,0,MAX($I$4:$I$8))))))) ->  | Y47: =IF(#REF!="",IF(#REF!="","",VLOOKUP(X47,$S$23:$T$34,2,FALSE)),"") -> 
B48: =IF(#REF!="","",+C48-D48) ->  | C48: =IF(#REF!="","",+#REF!) ->  | D48: =IF(#REF!="","",IF(C48>44256,365,364)) ->  | E48: H | F48: 2353705.82 | G48: No excluida | H48: No requiere | I48: 200 | J48: 20000 | K48: 423667.03 | L48: 39401.62 | M48: 9414.8 | N48: 7296.5 | O48: 1965.71 | P48: 1408.87 | Q48: 12789.38 | R48: 10671.08 | S48: 8 | T48: =+E48 -> H | W48: =IF(#REF!="","",IF(V48="EXCLUIDO",0,VLOOKUP(V48,$E$22:$S$34,15))) ->  | X48: =IF(#REF!="","",IF($I$4=0,0,IF($I$5=0,0,IF($I$6=0,0,IF($I$7=0,0,IF($I$8=0,0,MAX($I$4:$I$8))))))) ->  | Y48: =IF(#REF!="",IF(#REF!="","",VLOOKUP(X48,$S$23:$T$34,2,FALSE)),"") -> 
B49: =IF(#REF!="","",+C49-D49) ->  | C49: =IF(#REF!="","",+#REF!) ->  | D49: =IF(#REF!="","",IF(C49>44256,365,364)) ->  | E49: I | F49: 2765604.35 | G49: Venta de Bs. muebles | H49: No requiere | I49: 200 | J49: 20000 | K49: 423667.03 | L49: 39401.62 | M49: 0 | N49: 11768.52 | O49: 2162.29 | P49: 1408.87 | Q49: 0 | R49: 15339.68 | S49: 9 | T49: =+E49 -> I | W49: =IF(#REF!="","",IF(V49="EXCLUIDO",0,VLOOKUP(V49,$E$22:$S$34,15))) ->  | X49: =IF(#REF!="","",IF($I$4=0,0,IF($I$5=0,0,IF($I$6=0,0,IF($I$7=0,0,IF($I$8=0,0,MAX($I$4:$I$8))))))) ->  | Y49: =IF(#REF!="",IF(#REF!="","",VLOOKUP(X49,$S$23:$T$34,2,FALSE)),"") -> 
B50: =IF(#REF!="","",+C50-D50) ->  | C50: =IF(#REF!="","",+#REF!) ->  | D50: =IF(#REF!="","",IF(C50>44256,365,364)) ->  | E50: J | F50: 3177502.86 | G50: Venta de Bs. muebles | H50: No requiere | I50: 200 | J50: 20000 | K50: 423667.03 | L50: 39401.62 | M50: 0 | N50: 13829.7 | O50: 2378.53 | P50: 1408.87 | Q50: 0 | R50: 17617.1 | S50: 10 | T50: =+E50 -> J | W50: =IF(#REF!="","",IF(V50="EXCLUIDO",0,VLOOKUP(V50,$E$22:$S$34,15))) ->  | X50: =IF(#REF!="","",IF($I$4=0,0,IF($I$5=0,0,IF($I$6=0,0,IF($I$7=0,0,IF($I$8=0,0,MAX($I$4:$I$8))))))) ->  | Y50: =IF(#REF!="",IF(#REF!="","",VLOOKUP(X50,$S$23:$T$34,2,FALSE)),"") -> 
B51: =IF(#REF!="","",+C51-D51) ->  | C51: =IF(#REF!="","",+#REF!) ->  | D51: =IF(#REF!="","",IF(C51>44256,365,364)) ->  | E51: K | F51: 3530558.74 | G51: Venta de Bs. muebles | H51: No requiere | I51: 200 | J51: 20000 | K51: 423667.03 | L51: 39401.62 | M51: 0 | N51: 15887.51 | O51: 2616.36 | P51: 1408.87 | Q51: 0 | R51: 19912.74 | S51: 11 | T51: =+E51 -> K | W51: =IF(#REF!="","",IF(V51="EXCLUIDO",0,VLOOKUP(V51,$E$22:$S$34,15))) ->  | X51: =IF(#REF!="","",IF($I$4=0,0,IF($I$5=0,0,IF($I$6=0,0,IF($I$7=0,0,IF($I$8=0,0,MAX($I$4:$I$8))))))) ->  | Y51: =IF(E52="",IF(#REF!="","",VLOOKUP(X51,$S$23:$T$34,2,FALSE)),"") -> 
B52: =IF(E52="","",+C52-D52) ->  | C52: =IF(E52="","",+E52) ->  | D52: =IF(E52="","",IF(C52>44256,365,364)) ->  | W52: =IF(E52="","",IF(V52="EXCLUIDO",0,VLOOKUP(V52,$E$22:$S$34,15))) ->  | X52: =IF(E52="","",IF($I$4=0,0,IF($I$5=0,0,IF($I$6=0,0,IF($I$7=0,0,IF($I$8=0,0,MAX($I$4:$I$8))))))) ->  | Y52: =IF(E53="",IF(T52="","",VLOOKUP(X52,$S$23:$T$34,2,FALSE)),"") -> 
B53: =IF(E53="","",+C53-D53) ->  | C53: =IF(E53="","",+E53) ->  | D53: =IF(E53="","",IF(C53>44256,365,364)) ->  | W53: =IF(E53="","",IF(V53="EXCLUIDO",0,VLOOKUP(V53,$E$22:$S$34,15))) ->  | X53: =IF(E53="","",IF($I$4=0,0,IF($I$5=0,0,IF($I$6=0,0,IF($I$7=0,0,IF($I$8=0,0,MAX($I$4:$I$8))))))) ->  | Y53: =IF(E54="",IF(T53="","",VLOOKUP(X53,$S$23:$T$34,2,FALSE)),"") -> 
B54: =IF(E54="","",+C54-D54) ->  | C54: =IF(E54="","",+E54) ->  | D54: =IF(E54="","",IF(C54>44256,365,364)) ->  | W54: =IF(E54="","",IF(V54="EXCLUIDO",0,VLOOKUP(V54,$E$22:$S$34,15))) ->  | X54: =IF(E54="","",IF($I$4=0,0,IF($I$5=0,0,IF($I$6=0,0,IF($I$7=0,0,IF($I$8=0,0,MAX($I$4:$I$8))))))) ->  | Y54: =IF(E55="",IF(T54="","",VLOOKUP(X54,$S$23:$T$34,2,FALSE)),"") -> 
B55: =IF(E55="","",+C55-D55) ->  | C55: =IF(E55="","",+E55) ->  | D55: =IF(E55="","",IF(C55>44256,365,364)) ->  | W55: =IF(E55="","",IF(V55="EXCLUIDO",0,VLOOKUP(V55,$E$22:$S$34,15))) ->  | X55: =IF(E55="","",IF($I$4=0,0,IF($I$5=0,0,IF($I$6=0,0,IF($I$7=0,0,IF($I$8=0,0,MAX($I$4:$I$8))))))) ->  | Y55: =IF(E56="",IF(T55="","",VLOOKUP(X55,$S$23:$T$34,2,FALSE)),"") -> 
B56: =IF(E56="","",+C56-D56) ->  | C56: =IF(E56="","",+E56) ->  | D56: =IF(E56="","",IF(C56>44256,365,364)) ->  | W56: =IF(E56="","",IF(V56="EXCLUIDO",0,VLOOKUP(V56,$E$22:$S$34,15))) ->  | X56: =IF(E56="","",IF($I$4=0,0,IF($I$5=0,0,IF($I$6=0,0,IF($I$7=0,0,IF($I$8=0,0,MAX($I$4:$I$8))))))) ->  | Y56: =IF(E57="",IF(T56="","",VLOOKUP(X56,$S$23:$T$34,2,FALSE)),"") -> 
B57: =IF(E57="","",+C57-D57) ->  | C57: =IF(E57="","",+E57) ->  | D57: =IF(E57="","",IF(C57>44256,365,364)) ->  | W57: =IF(E57="","",IF(V57="EXCLUIDO",0,VLOOKUP(V57,$E$22:$S$34,15))) ->  | X57: =IF(E57="","",IF($I$4=0,0,IF($I$5=0,0,IF($I$6=0,0,IF($I$7=0,0,IF($I$8=0,0,MAX($I$4:$I$8))))))) ->  | Y57: =IF(E58="",IF(T57="","",VLOOKUP(X57,$S$23:$T$34,2,FALSE)),"") -> 
B58: =IF(E58="","",+C58-D58) ->  | C58: =IF(E58="","",+E58) ->  | D58: =IF(E58="","",IF(C58>44256,365,364)) ->  | W58: =IF(E58="","",IF(V58="EXCLUIDO",0,VLOOKUP(V58,$E$22:$S$34,15))) ->  | X58: =IF(E58="","",IF($I$4=0,0,IF($I$5=0,0,IF($I$6=0,0,IF($I$7=0,0,IF($I$8=0,0,MAX($I$4:$I$8))))))) ->  | Y58: =IF(E59="",IF(T58="","",VLOOKUP(X58,$S$23:$T$34,2,FALSE)),"") -> 
B59: =IF(E59="","",+C59-D59) ->  | C59: =IF(E59="","",+E59) ->  | D59: =IF(E59="","",IF(C59>44256,365,364)) ->  | W59: =IF(E59="","",IF(V59="EXCLUIDO",0,VLOOKUP(V59,$E$22:$S$34,15))) ->  | X59: =IF(E59="","",IF($I$4=0,0,IF($I$5=0,0,IF($I$6=0,0,IF($I$7=0,0,IF($I$8=0,0,MAX($I$4:$I$8))))))) ->  | Y59: =IF(E60="",IF(T59="","",VLOOKUP(X59,$S$23:$T$34,2,FALSE)),"") -> 
B60: =IF(E60="","",+C60-D60) ->  | C60: =IF(E60="","",+E60) ->  | D60: =IF(E60="","",IF(C60>44256,365,364)) ->  | W60: =IF(E60="","",IF(V60="EXCLUIDO",0,VLOOKUP(V60,$E$22:$S$34,15))) ->  | X60: =IF(E60="","",IF($I$4=0,0,IF($I$5=0,0,IF($I$6=0,0,IF($I$7=0,0,IF($I$8=0,0,MAX($I$4:$I$8))))))) ->  | Y60: =IF(E61="",IF(T60="","",VLOOKUP(X60,$S$23:$T$34,2,FALSE)),"") -> 
B61: =IF(E61="","",+C61-D61) ->  | C61: =IF(E61="","",+E61) ->  | D61: =IF(E61="","",IF(C61>44256,365,364)) ->  | W61: =IF(E61="","",IF(V61="EXCLUIDO",0,VLOOKUP(V61,$E$22:$S$34,15))) ->  | X61: =IF(E61="","",IF($I$4=0,0,IF($I$5=0,0,IF($I$6=0,0,IF($I$7=0,0,IF($I$8=0,0,MAX($I$4:$I$8))))))) ->  | Y61: =IF(E62="",IF(T61="","",VLOOKUP(X61,$S$23:$T$34,2,FALSE)),"") -> 
B62: =IF(E62="","",+C62-D62) ->  | C62: =IF(E62="","",+E62) ->  | D62: =IF(E62="","",IF(C62>44256,365,364)) ->  | W62: =IF(E62="","",IF(V62="EXCLUIDO",0,VLOOKUP(V62,$E$22:$S$34,15))) ->  | X62: =IF(E62="","",IF($I$4=0,0,IF($I$5=0,0,IF($I$6=0,0,IF($I$7=0,0,IF($I$8=0,0,MAX($I$4:$I$8))))))) ->  | Y62: =IF(E63="",IF(T62="","",VLOOKUP(X62,$S$23:$T$34,2,FALSE)),"") -> 
B63: =IF(E63="","",+C63-D63) ->  | C63: =IF(E63="","",+E63) ->  | D63: =IF(E63="","",IF(C63>44256,365,364)) ->  | W63: =IF(E63="","",IF(V63="EXCLUIDO",0,VLOOKUP(V63,$E$22:$S$34,15))) ->  | X63: =IF(E63="","",IF($I$4=0,0,IF($I$5=0,0,IF($I$6=0,0,IF($I$7=0,0,IF($I$8=0,0,MAX($I$4:$I$8))))))) ->  | Y63: =IF(E64="",IF(T63="","",VLOOKUP(X63,$S$23:$T$34,2,FALSE)),"") -> 
B64: =IF(E64="","",+C64-D64) ->  | C64: =IF(E64="","",+E64) ->  | D64: =IF(E64="","",IF(C64>44256,365,364)) ->  | W64: =IF(E64="","",IF(V64="EXCLUIDO",0,VLOOKUP(V64,$E$22:$S$34,15))) ->  | X64: =IF(E64="","",IF($I$4=0,0,IF($I$5=0,0,IF($I$6=0,0,IF($I$7=0,0,IF($I$8=0,0,MAX($I$4:$I$8))))))) ->  | Y64: =IF(E65="",IF(T64="","",VLOOKUP(X64,$S$23:$T$34,2,FALSE)),"") -> 
B65: =IF(E65="","",+C65-D65) ->  | C65: =IF(E65="","",+E65) ->  | D65: =IF(E65="","",IF(C65>44256,365,364)) ->  | W65: =IF(E65="","",IF(V65="EXCLUIDO",0,VLOOKUP(V65,$E$22:$S$34,15))) ->  | X65: =IF(E65="","",IF($I$4=0,0,IF($I$5=0,0,IF($I$6=0,0,IF($I$7=0,0,IF($I$8=0,0,MAX($I$4:$I$8))))))) ->  | Y65: =IF(E66="",IF(T65="","",VLOOKUP(X65,$S$23:$T$34,2,FALSE)),"") -> 
B66: =IF(E66="","",+C66-D66) ->  | C66: =IF(E66="","",+E66) ->  | D66: =IF(E66="","",IF(C66>44256,365,364)) ->  | W66: =IF(E66="","",IF(V66="EXCLUIDO",0,VLOOKUP(V66,$E$22:$S$34,15))) ->  | X66: =IF(E66="","",IF($I$4=0,0,IF($I$5=0,0,IF($I$6=0,0,IF($I$7=0,0,IF($I$8=0,0,MAX($I$4:$I$8))))))) ->  | Y66: =IF(E67="",IF(T66="","",VLOOKUP(X66,$S$23:$T$34,2,FALSE)),"") -> 
B67: =IF(E67="","",+C67-D67) ->  | C67: =IF(E67="","",+E67) ->  | D67: =IF(E67="","",IF(C67>44256,365,364)) ->  | W67: =IF(E67="","",IF(V67="EXCLUIDO",0,VLOOKUP(V67,$E$22:$S$34,15))) ->  | X67: =IF(E67="","",IF($I$4=0,0,IF($I$5=0,0,IF($I$6=0,0,IF($I$7=0,0,IF($I$8=0,0,MAX($I$4:$I$8))))))) ->  | Y67: =IF(E68="",IF(T67="","",VLOOKUP(X67,$S$23:$T$34,2,FALSE)),"") -> 
B68: =IF(E68="","",+C68-D68) ->  | C68: =IF(E68="","",+E68) ->  | D68: =IF(E68="","",IF(C68>44256,365,364)) ->  | W68: =IF(E68="","",IF(V68="EXCLUIDO",0,VLOOKUP(V68,$E$22:$S$34,15))) ->  | X68: =IF(E68="","",IF($I$4=0,0,IF($I$5=0,0,IF($I$6=0,0,IF($I$7=0,0,IF($I$8=0,0,MAX($I$4:$I$8))))))) ->  | Y68: =IF(E69="",IF(T68="","",VLOOKUP(X68,$S$23:$T$34,2,FALSE)),"") -> 
B69: =IF(E69="","",+C69-D69) ->  | C69: =IF(E69="","",+E69) ->  | D69: =IF(E69="","",IF(C69>44256,365,364)) ->  | W69: =IF(E69="","",IF(V69="EXCLUIDO",0,VLOOKUP(V69,$E$22:$S$34,15))) ->  | X69: =IF(E69="","",IF($I$4=0,0,IF($I$5=0,0,IF($I$6=0,0,IF($I$7=0,0,IF($I$8=0,0,MAX($I$4:$I$8))))))) ->  | Y69: =IF(E70="",IF(T69="","",VLOOKUP(X69,$S$23:$T$34,2,FALSE)),"") -> 
B70: =IF(E70="","",+C70-D70) ->  | C70: =IF(E70="","",+E70) ->  | D70: =IF(E70="","",IF(C70>44256,365,364)) ->  | W70: =IF(E70="","",IF(V70="EXCLUIDO",0,VLOOKUP(V70,$E$22:$S$34,15))) ->  | X70: =IF(E70="","",IF($I$4=0,0,IF($I$5=0,0,IF($I$6=0,0,IF($I$7=0,0,IF($I$8=0,0,MAX($I$4:$I$8))))))) ->  | Y70: =IF(E71="",IF(T70="","",VLOOKUP(X70,$S$23:$T$34,2,FALSE)),"") -> 
B71: =IF(E71="","",+C71-D71) ->  | C71: =IF(E71="","",+E71) ->  | D71: =IF(E71="","",IF(C71>44256,365,364)) ->  | W71: =IF(E71="","",IF(V71="EXCLUIDO",0,VLOOKUP(V71,$E$22:$S$34,15))) ->  | X71: =IF(E71="","",IF($I$4=0,0,IF($I$5=0,0,IF($I$6=0,0,IF($I$7=0,0,IF($I$8=0,0,MAX($I$4:$I$8))))))) ->  | Y71: =IF(E72="",IF(T71="","",VLOOKUP(X71,$S$23:$T$34,2,FALSE)),"") -> 
B72: =IF(E72="","",+C72-D72) ->  | C72: =IF(E72="","",+E72) ->  | D72: =IF(E72="","",IF(C72>44256,365,364)) ->  | W72: =IF(E72="","",IF(V72="EXCLUIDO",0,VLOOKUP(V72,$E$22:$S$34,15))) ->  | X72: =IF(E72="","",IF($I$4=0,0,IF($I$5=0,0,IF($I$6=0,0,IF($I$7=0,0,IF($I$8=0,0,MAX($I$4:$I$8))))))) ->  | Y72: =IF(E73="",IF(T72="","",VLOOKUP(X72,$S$23:$T$34,2,FALSE)),"") -> 
B73: =IF(E73="","",+C73-D73) ->  | C73: =IF(E73="","",+E73) ->  | D73: =IF(E73="","",IF(C73>44256,365,364)) ->  | W73: =IF(E73="","",IF(V73="EXCLUIDO",0,VLOOKUP(V73,$E$22:$S$34,15))) ->  | X73: =IF(E73="","",IF($I$4=0,0,IF($I$5=0,0,IF($I$6=0,0,IF($I$7=0,0,IF($I$8=0,0,MAX($I$4:$I$8))))))) ->  | Y73: =IF(E74="",IF(T73="","",VLOOKUP(X73,$S$23:$T$34,2,FALSE)),"") -> 
B74: =IF(E74="","",+C74-D74) ->  | C74: =IF(E74="","",+E74) ->  | D74: =IF(E74="","",IF(C74>44256,365,364)) ->  | W74: =IF(E74="","",IF(V74="EXCLUIDO",0,VLOOKUP(V74,$E$22:$S$34,15))) ->  | X74: =IF(E74="","",IF($I$4=0,0,IF($I$5=0,0,IF($I$6=0,0,IF($I$7=0,0,IF($I$8=0,0,MAX($I$4:$I$8))))))) ->  | Y74: =IF(E75="",IF(T74="","",VLOOKUP(X74,$S$23:$T$34,2,FALSE)),"") -> 
B75: =IF(E75="","",+C75-D75) ->  | C75: =IF(E75="","",+E75) ->  | D75: =IF(E75="","",IF(C75>44256,365,364)) ->  | W75: =IF(E75="","",IF(V75="EXCLUIDO",0,VLOOKUP(V75,$E$22:$S$34,15))) ->  | X75: =IF(E75="","",IF($I$4=0,0,IF($I$5=0,0,IF($I$6=0,0,IF($I$7=0,0,IF($I$8=0,0,MAX($I$4:$I$8))))))) ->  | Y75: =IF(E76="",IF(T75="","",VLOOKUP(X75,$S$23:$T$34,2,FALSE)),"") -> 
B76: =IF(E76="","",+C76-D76) ->  | C76: =IF(E76="","",+E76) ->  | D76: =IF(E76="","",IF(C76>44256,365,364)) ->  | W76: =IF(E76="","",IF(V76="EXCLUIDO",0,VLOOKUP(V76,$E$22:$S$34,15))) ->  | X76: =IF(E76="","",IF($I$4=0,0,IF($I$5=0,0,IF($I$6=0,0,IF($I$7=0,0,IF($I$8=0,0,MAX($I$4:$I$8))))))) ->  | Y76: =IF(E77="",IF(T76="","",VLOOKUP(X76,$S$23:$T$34,2,FALSE)),"") -> 
B77: =IF(E77="","",+C77-D77) ->  | C77: =IF(E77="","",+E77) ->  | D77: =IF(E77="","",IF(C77>44256,365,364)) ->  | W77: =IF(E77="","",IF(V77="EXCLUIDO",0,VLOOKUP(V77,$E$22:$S$34,15))) ->  | X77: =IF(E77="","",IF($I$4=0,0,IF($I$5=0,0,IF($I$6=0,0,IF($I$7=0,0,IF($I$8=0,0,MAX($I$4:$I$8))))))) ->  | Y77: =IF(E78="",IF(T77="","",VLOOKUP(X77,$S$23:$T$34,2,FALSE)),"") -> 
B78: =IF(E78="","",+C78-D78) ->  | C78: =IF(E78="","",+E78) ->  | D78: =IF(E78="","",IF(C78>44256,365,364)) ->  | W78: =IF(E78="","",IF(V78="EXCLUIDO",0,VLOOKUP(V78,$E$22:$S$34,15))) ->  | X78: =IF(E78="","",IF($I$4=0,0,IF($I$5=0,0,IF($I$6=0,0,IF($I$7=0,0,IF($I$8=0,0,MAX($I$4:$I$8))))))) ->  | Y78: =IF(E79="",IF(T78="","",VLOOKUP(X78,$S$23:$T$34,2,FALSE)),"") -> 
B79: =IF(E79="","",+C79-D79) ->  | C79: =IF(E79="","",+E79) ->  | D79: =IF(E79="","",IF(C79>44256,365,364)) ->  | W79: =IF(E79="","",IF(V79="EXCLUIDO",0,VLOOKUP(V79,$E$22:$S$34,15))) ->  | X79: =IF(E79="","",IF($I$4=0,0,IF($I$5=0,0,IF($I$6=0,0,IF($I$7=0,0,IF($I$8=0,0,MAX($I$4:$I$8))))))) ->  | Y79: =IF(E80="",IF(T79="","",VLOOKUP(X79,$S$23:$T$34,2,FALSE)),"") -> 
B80: =IF(E80="","",+C80-D80) ->  | C80: =IF(E80="","",+E80) ->  | D80: =IF(E80="","",IF(C80>44256,365,364)) ->  | W80: =IF(E80="","",IF(V80="EXCLUIDO",0,VLOOKUP(V80,$E$22:$S$34,15))) ->  | X80: =IF(E80="","",IF($I$4=0,0,IF($I$5=0,0,IF($I$6=0,0,IF($I$7=0,0,IF($I$8=0,0,MAX($I$4:$I$8))))))) ->  | Y80: =IF(E81="",IF(T80="","",VLOOKUP(X80,$S$23:$T$34,2,FALSE)),"") -> 
B81: =IF(E81="","",+C81-D81) ->  | C81: =IF(E81="","",+E81) ->  | D81: =IF(E81="","",IF(C81>44256,365,364)) ->  | W81: =IF(E81="","",IF(V81="EXCLUIDO",0,VLOOKUP(V81,$E$22:$S$34,15))) ->  | X81: =IF(E81="","",IF($I$4=0,0,IF($I$5=0,0,IF($I$6=0,0,IF($I$7=0,0,IF($I$8=0,0,MAX($I$4:$I$8))))))) ->  | Y81: =IF(E82="",IF(T81="","",VLOOKUP(X81,$S$23:$T$34,2,FALSE)),"") -> 
B82: =IF(E82="","",+C82-D82) ->  | C82: =IF(E82="","",+E82) ->  | D82: =IF(E82="","",IF(C82>44256,365,364)) ->  | W82: =IF(E82="","",IF(V82="EXCLUIDO",0,VLOOKUP(V82,$E$22:$S$34,15))) ->  | X82: =IF(E82="","",IF($I$4=0,0,IF($I$5=0,0,IF($I$6=0,0,IF($I$7=0,0,IF($I$8=0,0,MAX($I$4:$I$8))))))) ->  | Y82: =IF(E83="",IF(T82="","",VLOOKUP(X82,$S$23:$T$34,2,FALSE)),"") -> 
B83: =IF(E83="","",+C83-D83) ->  | C83: =IF(E83="","",+E83) ->  | D83: =IF(E83="","",IF(C83>44256,365,364)) ->  | W83: =IF(E83="","",IF(V83="EXCLUIDO",0,VLOOKUP(V83,$E$22:$S$34,15))) ->  | X83: =IF(E83="","",IF($I$4=0,0,IF($I$5=0,0,IF($I$6=0,0,IF($I$7=0,0,IF($I$8=0,0,MAX($I$4:$I$8))))))) ->  | Y83: =IF(E84="",IF(T83="","",VLOOKUP(X83,$S$23:$T$34,2,FALSE)),"") -> 
B84: =IF(E84="","",+C84-D84) ->  | C84: =IF(E84="","",+E84) ->  | D84: =IF(E84="","",IF(C84>44256,365,364)) ->  | W84: =IF(E84="","",IF(V84="EXCLUIDO",0,VLOOKUP(V84,$E$22:$S$34,15))) ->  | X84: =IF(E84="","",IF($I$4=0,0,IF($I$5=0,0,IF($I$6=0,0,IF($I$7=0,0,IF($I$8=0,0,MAX($I$4:$I$8))))))) ->  | Y84: =IF(E85="",IF(T84="","",VLOOKUP(X84,$S$23:$T$34,2,FALSE)),"") -> 
B85: =IF(E85="","",+C85-D85) ->  | C85: =IF(E85="","",+E85) ->  | D85: =IF(E85="","",IF(C85>44256,365,364)) ->  | W85: =IF(E85="","",IF(V85="EXCLUIDO",0,VLOOKUP(V85,$E$22:$S$34,15))) ->  | X85: =IF(E85="","",IF($I$4=0,0,IF($I$5=0,0,IF($I$6=0,0,IF($I$7=0,0,IF($I$8=0,0,MAX($I$4:$I$8))))))) ->  | Y85: =IF(E86="",IF(T85="","",VLOOKUP(X85,$S$23:$T$34,2,FALSE)),"") -> 
B86: =IF(E86="","",+C86-D86) ->  | C86: =IF(E86="","",+E86) ->  | D86: =IF(E86="","",IF(C86>44256,365,364)) ->  | W86: =IF(E86="","",IF(V86="EXCLUIDO",0,VLOOKUP(V86,$E$22:$S$34,15))) ->  | X86: =IF(E86="","",IF($I$4=0,0,IF($I$5=0,0,IF($I$6=0,0,IF($I$7=0,0,IF($I$8=0,0,MAX($I$4:$I$8))))))) ->  | Y86: =IF(E87="",IF(T86="","",VLOOKUP(X86,$S$23:$T$34,2,FALSE)),"") -> 
B87: =IF(E87="","",+C87-D87) ->  | C87: =IF(E87="","",+E87) ->  | D87: =IF(E87="","",IF(C87>44256,365,364)) ->  | W87: =IF(E87="","",IF(V87="EXCLUIDO",0,VLOOKUP(V87,$E$22:$S$34,15))) ->  | X87: =IF(E87="","",IF($I$4=0,0,IF($I$5=0,0,IF($I$6=0,0,IF($I$7=0,0,IF($I$8=0,0,MAX($I$4:$I$8))))))) ->  | Y87: =IF(E88="",IF(T87="","",VLOOKUP(X87,$S$23:$T$34,2,FALSE)),"") -> 
B88: =IF(E88="","",+C88-D88) ->  | C88: =IF(E88="","",+E88) ->  | D88: =IF(E88="","",IF(C88>44256,365,364)) ->  | W88: =IF(E88="","",IF(V88="EXCLUIDO",0,VLOOKUP(V88,$E$22:$S$34,15))) ->  | X88: =IF(E88="","",IF($I$4=0,0,IF($I$5=0,0,IF($I$6=0,0,IF($I$7=0,0,IF($I$8=0,0,MAX($I$4:$I$8))))))) ->  | Y88: =IF(E89="",IF(T88="","",VLOOKUP(X88,$S$23:$T$34,2,FALSE)),"") -> 
B89: =IF(E89="","",+C89-D89) ->  | C89: =IF(E89="","",+E89) ->  | D89: =IF(E89="","",IF(C89>44256,365,364)) ->  | W89: =IF(E89="","",IF(V89="EXCLUIDO",0,VLOOKUP(V89,$E$22:$S$34,15))) ->  | X89: =IF(E89="","",IF($I$4=0,0,IF($I$5=0,0,IF($I$6=0,0,IF($I$7=0,0,IF($I$8=0,0,MAX($I$4:$I$8))))))) ->  | Y89: =IF(E90="",IF(T89="","",VLOOKUP(X89,$S$23:$T$34,2,FALSE)),"") -> 
B90: =IF(E90="","",+C90-D90) ->  | C90: =IF(E90="","",+E90) ->  | D90: =IF(E90="","",IF(C90>44256,365,364)) ->  | W90: =IF(E90="","",IF(V90="EXCLUIDO",0,VLOOKUP(V90,$E$22:$S$34,15))) ->  | X90: =IF(E90="","",IF($I$4=0,0,IF($I$5=0,0,IF($I$6=0,0,IF($I$7=0,0,IF($I$8=0,0,MAX($I$4:$I$8))))))) ->  | Y90: =IF(E91="",IF(T90="","",VLOOKUP(X90,$S$23:$T$34,2,FALSE)),"") -> 
B91: =IF(E91="","",+C91-D91) ->  | C91: =IF(E91="","",+E91) ->  | D91: =IF(E91="","",IF(C91>44256,365,364)) ->  | W91: =IF(E91="","",IF(V91="EXCLUIDO",0,VLOOKUP(V91,$E$22:$S$34,15))) ->  | X91: =IF(E91="","",IF($I$4=0,0,IF($I$5=0,0,IF($I$6=0,0,IF($I$7=0,0,IF($I$8=0,0,MAX($I$4:$I$8))))))) ->  | Y91: =IF(E92="",IF(T91="","",VLOOKUP(X91,$S$23:$T$34,2,FALSE)),"") -> 
B92: =IF(E92="","",+C92-D92) ->  | C92: =IF(E92="","",+E92) ->  | D92: =IF(E92="","",IF(C92>44256,365,364)) ->  | W92: =IF(E92="","",IF(V92="EXCLUIDO",0,VLOOKUP(V92,$E$22:$S$34,15))) ->  | X92: =IF(E92="","",IF($I$4=0,0,IF($I$5=0,0,IF($I$6=0,0,IF($I$7=0,0,IF($I$8=0,0,MAX($I$4:$I$8))))))) ->  | Y92: =IF(E93="",IF(T92="","",VLOOKUP(X92,$S$23:$T$34,2,FALSE)),"") -> 
B93: =IF(E93="","",+C93-D93) ->  | C93: =IF(E93="","",+E93) ->  | D93: =IF(E93="","",IF(C93>44256,365,364)) ->  | W93: =IF(E93="","",IF(V93="EXCLUIDO",0,VLOOKUP(V93,$E$22:$S$34,15))) ->  | X93: =IF(E93="","",IF($I$4=0,0,IF($I$5=0,0,IF($I$6=0,0,IF($I$7=0,0,IF($I$8=0,0,MAX($I$4:$I$8))))))) ->  | Y93: =IF(E94="",IF(T93="","",VLOOKUP(X93,$S$23:$T$34,2,FALSE)),"") -> 
B94: =IF(E94="","",+C94-D94) ->  | C94: =IF(E94="","",+E94) ->  | D94: =IF(E94="","",IF(C94>44256,365,364)) ->  | W94: =IF(E94="","",IF(V94="EXCLUIDO",0,VLOOKUP(V94,$E$22:$S$34,15))) ->  | X94: =IF(E94="","",IF($I$4=0,0,IF($I$5=0,0,IF($I$6=0,0,IF($I$7=0,0,IF($I$8=0,0,MAX($I$4:$I$8))))))) ->  | Y94: =IF(E95="",IF(T94="","",VLOOKUP(X94,$S$23:$T$34,2,FALSE)),"") -> 
B95: =IF(E95="","",+C95-D95) ->  | C95: =IF(E95="","",+E95) ->  | D95: =IF(E95="","",IF(C95>44256,365,364)) ->  | W95: =IF(E95="","",IF(V95="EXCLUIDO",0,VLOOKUP(V95,$E$22:$S$34,15))) ->  | X95: =IF(E95="","",IF($I$4=0,0,IF($I$5=0,0,IF($I$6=0,0,IF($I$7=0,0,IF($I$8=0,0,MAX($I$4:$I$8))))))) ->  | Y95: =IF(E96="",IF(T95="","",VLOOKUP(X95,$S$23:$T$34,2,FALSE)),"") -> 
B96: =IF(E96="","",+C96-D96) ->  | C96: =IF(E96="","",+E96) ->  | D96: =IF(E96="","",IF(C96>44256,365,364)) ->  | W96: =IF(E96="","",IF(V96="EXCLUIDO",0,VLOOKUP(V96,$E$22:$S$34,15))) ->  | X96: =IF(E96="","",IF($I$4=0,0,IF($I$5=0,0,IF($I$6=0,0,IF($I$7=0,0,IF($I$8=0,0,MAX($I$4:$I$8))))))) ->  | Y96: =IF(E97="",IF(T96="","",VLOOKUP(X96,$S$23:$T$34,2,FALSE)),"") -> 
B97: =IF(E97="","",+C97-D97) ->  | C97: =IF(E97="","",+E97) ->  | D97: =IF(E97="","",IF(C97>44256,365,364)) ->  | W97: =IF(E97="","",IF(V97="EXCLUIDO",0,VLOOKUP(V97,$E$22:$S$34,15))) ->  | X97: =IF(E97="","",IF($I$4=0,0,IF($I$5=0,0,IF($I$6=0,0,IF($I$7=0,0,IF($I$8=0,0,MAX($I$4:$I$8))))))) ->  | Y97: =IF(E98="",IF(T97="","",VLOOKUP(X97,$S$23:$T$34,2,FALSE)),"") -> 
B98: =IF(E98="","",+C98-D98) ->  | C98: =IF(E98="","",+E98) ->  | D98: =IF(E98="","",IF(C98>44256,365,364)) ->  | W98: =IF(E98="","",IF(V98="EXCLUIDO",0,VLOOKUP(V98,$E$22:$S$34,15))) ->  | X98: =IF(E98="","",IF($I$4=0,0,IF($I$5=0,0,IF($I$6=0,0,IF($I$7=0,0,IF($I$8=0,0,MAX($I$4:$I$8))))))) ->  | Y98: =IF(E99="",IF(T98="","",VLOOKUP(X98,$S$23:$T$34,2,FALSE)),"") -> 
B99: =IF(E99="","",+C99-D99) ->  | C99: =IF(E99="","",+E99) ->  | D99: =IF(E99="","",IF(C99>44256,365,364)) ->  | W99: =IF(E99="","",IF(V99="EXCLUIDO",0,VLOOKUP(V99,$E$22:$S$34,15))) ->  | X99: =IF(E99="","",IF($I$4=0,0,IF($I$5=0,0,IF($I$6=0,0,IF($I$7=0,0,IF($I$8=0,0,MAX($I$4:$I$8))))))) ->  | Y99: =IF(E100="",IF(T99="","",VLOOKUP(X99,$S$23:$T$34,2,FALSE)),"") -> 
B100: =IF(E100="","",+C100-D100) ->  | C100: =IF(E100="","",+E100) ->  | D100: =IF(E100="","",IF(C100>44256,365,364)) ->  | W100: =IF(E100="","",IF(V100="EXCLUIDO",0,VLOOKUP(V100,$E$22:$S$34,15))) ->  | X100: =IF(E100="","",IF($I$4=0,0,IF($I$5=0,0,IF($I$6=0,0,IF($I$7=0,0,IF($I$8=0,0,MAX($I$4:$I$8))))))) ->  | Y100: =IF(E101="",IF(T100="","",VLOOKUP(X100,$S$23:$T$34,2,FALSE)),"") -> 
B101: =IF(E101="","",+C101-D101) ->  | C101: =IF(E101="","",+E101) ->  | D101: =IF(E101="","",IF(C101>44256,365,364)) ->  | W101: =IF(E101="","",IF(V101="EXCLUIDO",0,VLOOKUP(V101,$E$22:$S$34,15))) ->  | X101: =IF(E101="","",IF($I$4=0,0,IF($I$5=0,0,IF($I$6=0,0,IF($I$7=0,0,IF($I$8=0,0,MAX($I$4:$I$8))))))) ->  | Y101: =IF(E102="",IF(T101="","",VLOOKUP(X101,$S$23:$T$34,2,FALSE)),"") -> 
B102: =IF(E102="","",+C102-D102) ->  | C102: =IF(E102="","",+E102) ->  | D102: =IF(E102="","",IF(C102>44256,365,364)) ->  | W102: =IF(E102="","",IF(V102="EXCLUIDO",0,VLOOKUP(V102,$E$22:$S$34,15))) ->  | X102: =IF(E102="","",IF($I$4=0,0,IF($I$5=0,0,IF($I$6=0,0,IF($I$7=0,0,IF($I$8=0,0,MAX($I$4:$I$8))))))) ->  | Y102: =IF(E103="",IF(T102="","",VLOOKUP(X102,$S$23:$T$34,2,FALSE)),"") -> 
B103: =IF(E103="","",+C103-D103) ->  | C103: =IF(E103="","",+E103) ->  | D103: =IF(E103="","",IF(C103>44256,365,364)) ->  | W103: =IF(E103="","",IF(V103="EXCLUIDO",0,VLOOKUP(V103,$E$22:$S$34,15))) ->  | X103: =IF(E103="","",IF($I$4=0,0,IF($I$5=0,0,IF($I$6=0,0,IF($I$7=0,0,IF($I$8=0,0,MAX($I$4:$I$8))))))) ->  | Y103: =IF(E104="",IF(T103="","",VLOOKUP(X103,$S$23:$T$34,2,FALSE)),"") -> 
B104: =IF(E104="","",+C104-D104) ->  | C104: =IF(E104="","",+E104) ->  | D104: =IF(E104="","",IF(C104>44256,365,364)) ->  | W104: =IF(E104="","",IF(V104="EXCLUIDO",0,VLOOKUP(V104,$E$22:$S$34,15))) ->  | X104: =IF(E104="","",IF($I$4=0,0,IF($I$5=0,0,IF($I$6=0,0,IF($I$7=0,0,IF($I$8=0,0,MAX($I$4:$I$8))))))) ->  | Y104: =IF(E105="",IF(T104="","",VLOOKUP(X104,$S$23:$T$34,2,FALSE)),"") -> 
B105: =IF(E105="","",+C105-D105) ->  | C105: =IF(E105="","",+E105) ->  | D105: =IF(E105="","",IF(C105>44256,365,364)) ->  | W105: =IF(E105="","",IF(V105="EXCLUIDO",0,VLOOKUP(V105,$E$22:$S$34,15))) ->  | X105: =IF(E105="","",IF($I$4=0,0,IF($I$5=0,0,IF($I$6=0,0,IF($I$7=0,0,IF($I$8=0,0,MAX($I$4:$I$8))))))) ->  | Y105: =IF(E106="",IF(T105="","",VLOOKUP(X105,$S$23:$T$34,2,FALSE)),"") -> 
B106: =IF(E106="","",+C106-D106) ->  | C106: =IF(E106="","",+E106) ->  | D106: =IF(E106="","",IF(C106>44256,365,364)) ->  | W106: =IF(E106="","",IF(V106="EXCLUIDO",0,VLOOKUP(V106,$E$22:$S$34,15))) ->  | X106: =IF(E106="","",IF($I$4=0,0,IF($I$5=0,0,IF($I$6=0,0,IF($I$7=0,0,IF($I$8=0,0,MAX($I$4:$I$8))))))) ->  | Y106: =IF(E107="",IF(T106="","",VLOOKUP(X106,$S$23:$T$34,2,FALSE)),"") -> 
B107: =IF(E107="","",+C107-D107) ->  | C107: =IF(E107="","",+E107) ->  | D107: =IF(E107="","",IF(C107>44256,365,364)) ->  | W107: =IF(E107="","",IF(V107="EXCLUIDO",0,VLOOKUP(V107,$E$22:$S$34,15))) ->  | X107: =IF(E107="","",IF($I$4=0,0,IF($I$5=0,0,IF($I$6=0,0,IF($I$7=0,0,IF($I$8=0,0,MAX($I$4:$I$8))))))) ->  | Y107: =IF(E108="",IF(T107="","",VLOOKUP(X107,$S$23:$T$34,2,FALSE)),"") -> 
B108: =IF(E108="","",+C108-D108) ->  | C108: =IF(E108="","",+E108) ->  | D108: =IF(E108="","",IF(C108>44256,365,364)) ->  | W108: =IF(E108="","",IF(V108="EXCLUIDO",0,VLOOKUP(V108,$E$22:$S$34,15))) ->  | X108: =IF(E108="","",IF($I$4=0,0,IF($I$5=0,0,IF($I$6=0,0,IF($I$7=0,0,IF($I$8=0,0,MAX($I$4:$I$8))))))) ->  | Y108: =IF(E109="",IF(T108="","",VLOOKUP(X108,$S$23:$T$34,2,FALSE)),"") -> 
B109: =IF(E109="","",+C109-D109) ->  | C109: =IF(E109="","",+E109) ->  | D109: =IF(E109="","",IF(C109>44256,365,364)) ->  | W109: =IF(E109="","",IF(V109="EXCLUIDO",0,VLOOKUP(V109,$E$22:$S$34,15))) ->  | X109: =IF(E109="","",IF($I$4=0,0,IF($I$5=0,0,IF($I$6=0,0,IF($I$7=0,0,IF($I$8=0,0,MAX($I$4:$I$8))))))) ->  | Y109: =IF(E110="",IF(T109="","",VLOOKUP(X109,$S$23:$T$34,2,FALSE)),"") -> 
B110: =IF(E110="","",+C110-D110) ->  | C110: =IF(E110="","",+E110) ->  | D110: =IF(E110="","",IF(C110>44256,365,364)) ->  | W110: =IF(E110="","",IF(V110="EXCLUIDO",0,VLOOKUP(V110,$E$22:$S$34,15))) ->  | X110: =IF(E110="","",IF($I$4=0,0,IF($I$5=0,0,IF($I$6=0,0,IF($I$7=0,0,IF($I$8=0,0,MAX($I$4:$I$8))))))) ->  | Y110: =IF(E111="",IF(T110="","",VLOOKUP(X110,$S$23:$T$34,2,FALSE)),"") -> 
B111: =IF(E111="","",+C111-D111) ->  | C111: =IF(E111="","",+E111) ->  | D111: =IF(E111="","",IF(C111>44256,365,364)) ->  | W111: =IF(E111="","",IF(V111="EXCLUIDO",0,VLOOKUP(V111,$E$22:$S$34,15))) ->  | X111: =IF(E111="","",IF($I$4=0,0,IF($I$5=0,0,IF($I$6=0,0,IF($I$7=0,0,IF($I$8=0,0,MAX($I$4:$I$8))))))) ->  | Y111: =IF(E112="",IF(T111="","",VLOOKUP(X111,$S$23:$T$34,2,FALSE)),"") -> 
B112: =IF(E112="","",+C112-D112) ->  | C112: =IF(E112="","",+E112) ->  | D112: =IF(E112="","",IF(C112>44256,365,364)) ->  | W112: =IF(E112="","",IF(V112="EXCLUIDO",0,VLOOKUP(V112,$E$22:$S$34,15))) ->  | X112: =IF(E112="","",IF($I$4=0,0,IF($I$5=0,0,IF($I$6=0,0,IF($I$7=0,0,IF($I$8=0,0,MAX($I$4:$I$8))))))) ->  | Y112: =IF(E113="",IF(T112="","",VLOOKUP(X112,$S$23:$T$34,2,FALSE)),"") -> 
B113: =IF(E113="","",+C113-D113) ->  | C113: =IF(E113="","",+E113) ->  | D113: =IF(E113="","",IF(C113>44256,365,364)) ->  | W113: =IF(E113="","",IF(V113="EXCLUIDO",0,VLOOKUP(V113,$E$22:$S$34,15))) ->  | X113: =IF(E113="","",IF($I$4=0,0,IF($I$5=0,0,IF($I$6=0,0,IF($I$7=0,0,IF($I$8=0,0,MAX($I$4:$I$8))))))) ->  | Y113: =IF(E114="",IF(T113="","",VLOOKUP(X113,$S$23:$T$34,2,FALSE)),"") -> 
B114: =IF(E114="","",+C114-D114) ->  | C114: =IF(E114="","",+E114) ->  | D114: =IF(E114="","",IF(C114>44256,365,364)) ->  | W114: =IF(E114="","",IF(V114="EXCLUIDO",0,VLOOKUP(V114,$E$22:$S$34,15))) ->  | X114: =IF(E114="","",IF($I$4=0,0,IF($I$5=0,0,IF($I$6=0,0,IF($I$7=0,0,IF($I$8=0,0,MAX($I$4:$I$8))))))) ->  | Y114: =IF(E115="",IF(T114="","",VLOOKUP(X114,$S$23:$T$34,2,FALSE)),"") -> 
B115: =IF(E115="","",+C115-D115) ->  | C115: =IF(E115="","",+E115) ->  | D115: =IF(E115="","",IF(C115>44256,365,364)) ->  | W115: =IF(E115="","",IF(V115="EXCLUIDO",0,VLOOKUP(V115,$E$22:$S$34,15))) ->  | X115: =IF(E115="","",IF($I$4=0,0,IF($I$5=0,0,IF($I$6=0,0,IF($I$7=0,0,IF($I$8=0,0,MAX($I$4:$I$8))))))) ->  | Y115: =IF(E116="",IF(T115="","",VLOOKUP(X115,$S$23:$T$34,2,FALSE)),"") -> 
B116: =IF(E116="","",+C116-D116) ->  | C116: =IF(E116="","",+E116) ->  | D116: =IF(E116="","",IF(C116>44256,365,364)) ->  | W116: =IF(E116="","",IF(V116="EXCLUIDO",0,VLOOKUP(V116,$E$22:$S$34,15))) ->  | X116: =IF(E116="","",IF($I$4=0,0,IF($I$5=0,0,IF($I$6=0,0,IF($I$7=0,0,IF($I$8=0,0,MAX($I$4:$I$8))))))) ->  | Y116: =IF(E117="",IF(T116="","",VLOOKUP(X116,$S$23:$T$34,2,FALSE)),"") -> 
B117: =IF(E117="","",+C117-D117) ->  | C117: =IF(E117="","",+E117) ->  | D117: =IF(E117="","",IF(C117>44256,365,364)) ->  | W117: =IF(E117="","",IF(V117="EXCLUIDO",0,VLOOKUP(V117,$E$22:$S$34,15))) ->  | X117: =IF(E117="","",IF($I$4=0,0,IF($I$5=0,0,IF($I$6=0,0,IF($I$7=0,0,IF($I$8=0,0,MAX($I$4:$I$8))))))) ->  | Y117: =IF(E118="",IF(T117="","",VLOOKUP(X117,$S$23:$T$34,2,FALSE)),"") -> 
B118: =IF(E118="","",+C118-D118) ->  | C118: =IF(E118="","",+E118) ->  | D118: =IF(E118="","",IF(C118>44256,365,364)) ->  | W118: =IF(E118="","",IF(V118="EXCLUIDO",0,VLOOKUP(V118,$E$22:$S$34,15))) ->  | X118: =IF(E118="","",IF($I$4=0,0,IF($I$5=0,0,IF($I$6=0,0,IF($I$7=0,0,IF($I$8=0,0,MAX($I$4:$I$8))))))) ->  | Y118: =IF(E119="",IF(T118="","",VLOOKUP(X118,$S$23:$T$34,2,FALSE)),"") -> 
B119: =IF(E119="","",+C119-D119) ->  | C119: =IF(E119="","",+E119) ->  | D119: =IF(E119="","",IF(C119>44256,365,364)) ->  | W119: =IF(E119="","",IF(V119="EXCLUIDO",0,VLOOKUP(V119,$E$22:$S$34,15))) ->  | X119: =IF(E119="","",IF($I$4=0,0,IF($I$5=0,0,IF($I$6=0,0,IF($I$7=0,0,IF($I$8=0,0,MAX($I$4:$I$8))))))) ->  | Y119: =IF(E120="",IF(T119="","",VLOOKUP(X119,$S$23:$T$34,2,FALSE)),"") -> 
B120: =IF(E120="","",+C120-D120) ->  | C120: =IF(E120="","",+E120) ->  | D120: =IF(E120="","",IF(C120>44256,365,364)) ->  | W120: =IF(E120="","",IF(V120="EXCLUIDO",0,VLOOKUP(V120,$E$22:$S$34,15))) ->  | X120: =IF(E120="","",IF($I$4=0,0,IF($I$5=0,0,IF($I$6=0,0,IF($I$7=0,0,IF($I$8=0,0,MAX($I$4:$I$8))))))) ->  | Y120: =IF(E121="",IF(T120="","",VLOOKUP(X120,$S$23:$T$34,2,FALSE)),"") -> 
B121: =IF(E121="","",+C121-D121) ->  | C121: =IF(E121="","",+E121) ->  | D121: =IF(E121="","",IF(C121>44256,365,364)) ->  | W121: =IF(E121="","",IF(V121="EXCLUIDO",0,VLOOKUP(V121,$E$22:$S$34,15))) ->  | X121: =IF(E121="","",IF($I$4=0,0,IF($I$5=0,0,IF($I$6=0,0,IF($I$7=0,0,IF($I$8=0,0,MAX($I$4:$I$8))))))) ->  | Y121: =IF(E122="",IF(T121="","",VLOOKUP(X121,$S$23:$T$34,2,FALSE)),"") -> 
B122: =IF(E122="","",+C122-D122) ->  | C122: =IF(E122="","",+E122) ->  | D122: =IF(E122="","",IF(C122>44256,365,364)) ->  | W122: =IF(E122="","",IF(V122="EXCLUIDO",0,VLOOKUP(V122,$E$22:$S$34,15))) ->  | X122: =IF(E122="","",IF($I$4=0,0,IF($I$5=0,0,IF($I$6=0,0,IF($I$7=0,0,IF($I$8=0,0,MAX($I$4:$I$8))))))) ->  | Y122: =IF(E123="",IF(T122="","",VLOOKUP(X122,$S$23:$T$34,2,FALSE)),"") -> 
B123: =IF(E123="","",+C123-D123) ->  | C123: =IF(E123="","",+E123) ->  | D123: =IF(E123="","",IF(C123>44256,365,364)) ->  | W123: =IF(E123="","",IF(V123="EXCLUIDO",0,VLOOKUP(V123,$E$22:$S$34,15))) ->  | X123: =IF(E123="","",IF($I$4=0,0,IF($I$5=0,0,IF($I$6=0,0,IF($I$7=0,0,IF($I$8=0,0,MAX($I$4:$I$8))))))) ->  | Y123: =IF(E124="",IF(T123="","",VLOOKUP(X123,$S$23:$T$34,2,FALSE)),"") -> 
B124: =IF(E124="","",+C124-D124) ->  | C124: =IF(E124="","",+E124) ->  | D124: =IF(E124="","",IF(C124>44256,365,364)) ->  | W124: =IF(E124="","",IF(V124="EXCLUIDO",0,VLOOKUP(V124,$E$22:$S$34,15))) ->  | X124: =IF(E124="","",IF($I$4=0,0,IF($I$5=0,0,IF($I$6=0,0,IF($I$7=0,0,IF($I$8=0,0,MAX($I$4:$I$8))))))) ->  | Y124: =IF(E125="",IF(T124="","",VLOOKUP(X124,$S$23:$T$34,2,FALSE)),"") -> 
B125: =IF(E125="","",+C125-D125) ->  | C125: =IF(E125="","",+E125) ->  | D125: =IF(E125="","",IF(C125>44256,365,364)) ->  | W125: =IF(E125="","",IF(V125="EXCLUIDO",0,VLOOKUP(V125,$E$22:$S$34,15))) ->  | X125: =IF(E125="","",IF($I$4=0,0,IF($I$5=0,0,IF($I$6=0,0,IF($I$7=0,0,IF($I$8=0,0,MAX($I$4:$I$8))))))) ->  | Y125: =IF(E126="",IF(T125="","",VLOOKUP(X125,$S$23:$T$34,2,FALSE)),"") -> 
B126: =IF(E126="","",+C126-D126) ->  | C126: =IF(E126="","",+E126) ->  | D126: =IF(E126="","",IF(C126>44256,365,364)) ->  | W126: =IF(E126="","",IF(V126="EXCLUIDO",0,VLOOKUP(V126,$E$22:$S$34,15))) ->  | X126: =IF(E126="","",IF($I$4=0,0,IF($I$5=0,0,IF($I$6=0,0,IF($I$7=0,0,IF($I$8=0,0,MAX($I$4:$I$8))))))) ->  | Y126: =IF(E127="",IF(T126="","",VLOOKUP(X126,$S$23:$T$34,2,FALSE)),"") -> 
B127: =IF(E127="","",+C127-D127) ->  | C127: =IF(E127="","",+E127) ->  | D127: =IF(E127="","",IF(C127>44256,365,364)) ->  | W127: =IF(E127="","",IF(V127="EXCLUIDO",0,VLOOKUP(V127,$E$22:$S$34,15))) ->  | X127: =IF(E127="","",IF($I$4=0,0,IF($I$5=0,0,IF($I$6=0,0,IF($I$7=0,0,IF($I$8=0,0,MAX($I$4:$I$8))))))) ->  | Y127: =IF(E128="",IF(T127="","",VLOOKUP(X127,$S$23:$T$34,2,FALSE)),"") -> 
B128: =IF(E128="","",+C128-D128) ->  | C128: =IF(E128="","",+E128) ->  | D128: =IF(E128="","",IF(C128>44256,365,364)) ->  | W128: =IF(E128="","",IF(V128="EXCLUIDO",0,VLOOKUP(V128,$E$22:$S$34,15))) ->  | X128: =IF(E128="","",IF($I$4=0,0,IF($I$5=0,0,IF($I$6=0,0,IF($I$7=0,0,IF($I$8=0,0,MAX($I$4:$I$8))))))) ->  | Y128: =IF(E129="",IF(T128="","",VLOOKUP(X128,$S$23:$T$34,2,FALSE)),"") -> 
B129: =IF(E129="","",+C129-D129) ->  | C129: =IF(E129="","",+E129) ->  | D129: =IF(E129="","",IF(C129>44256,365,364)) ->  | W129: =IF(E129="","",IF(V129="EXCLUIDO",0,VLOOKUP(V129,$E$22:$S$34,15))) ->  | X129: =IF(E129="","",IF($I$4=0,0,IF($I$5=0,0,IF($I$6=0,0,IF($I$7=0,0,IF($I$8=0,0,MAX($I$4:$I$8))))))) ->  | Y129: =IF(E130="",IF(T129="","",VLOOKUP(X129,$S$23:$T$34,2,FALSE)),"") -> 
B130: =IF(E130="","",+C130-D130) ->  | C130: =IF(E130="","",+E130) ->  | D130: =IF(E130="","",IF(C130>44256,365,364)) ->  | W130: =IF(E130="","",IF(V130="EXCLUIDO",0,VLOOKUP(V130,$E$22:$S$34,15))) ->  | X130: =IF(E130="","",IF($I$4=0,0,IF($I$5=0,0,IF($I$6=0,0,IF($I$7=0,0,IF($I$8=0,0,MAX($I$4:$I$8))))))) ->  | Y130: =IF(E131="",IF(T130="","",VLOOKUP(X130,$S$23:$T$34,2,FALSE)),"") -> 
B131: =IF(E131="","",+C131-D131) ->  | C131: =IF(E131="","",+E131) ->  | D131: =IF(E131="","",IF(C131>44256,365,364)) ->  | W131: =IF(E131="","",IF(V131="EXCLUIDO",0,VLOOKUP(V131,$E$22:$S$34,15))) ->  | X131: =IF(E131="","",IF($I$4=0,0,IF($I$5=0,0,IF($I$6=0,0,IF($I$7=0,0,IF($I$8=0,0,MAX($I$4:$I$8))))))) ->  | Y131: =IF(E132="",IF(T131="","",VLOOKUP(X131,$S$23:$T$34,2,FALSE)),"") -> 
B132: =IF(E132="","",+C132-D132) ->  | C132: =IF(E132="","",+E132) ->  | D132: =IF(E132="","",IF(C132>44256,365,364)) ->  | W132: =IF(E132="","",IF(V132="EXCLUIDO",0,VLOOKUP(V132,$E$22:$S$34,15))) ->  | X132: =IF(E132="","",IF($I$4=0,0,IF($I$5=0,0,IF($I$6=0,0,IF($I$7=0,0,IF($I$8=0,0,MAX($I$4:$I$8))))))) ->  | Y132: =IF(E133="",IF(T132="","",VLOOKUP(X132,$S$23:$T$34,2,FALSE)),"") -> 
B133: =IF(E133="","",+C133-D133) ->  | C133: =IF(E133="","",+E133) ->  | D133: =IF(E133="","",IF(C133>44256,365,364)) ->  | W133: =IF(E133="","",IF(V133="EXCLUIDO",0,VLOOKUP(V133,$E$22:$S$34,15))) ->  | X133: =IF(E133="","",IF($I$4=0,0,IF($I$5=0,0,IF($I$6=0,0,IF($I$7=0,0,IF($I$8=0,0,MAX($I$4:$I$8))))))) ->  | Y133: =IF(E134="",IF(T133="","",VLOOKUP(X133,$S$23:$T$34,2,FALSE)),"") -> 
B134: =IF(E134="","",+C134-D134) ->  | C134: =IF(E134="","",+E134) ->  | D134: =IF(E134="","",IF(C134>44256,365,364)) ->  | W134: =IF(E134="","",IF(V134="EXCLUIDO",0,VLOOKUP(V134,$E$22:$S$34,15))) ->  | X134: =IF(E134="","",IF($I$4=0,0,IF($I$5=0,0,IF($I$6=0,0,IF($I$7=0,0,IF($I$8=0,0,MAX($I$4:$I$8))))))) ->  | Y134: =IF(E135="",IF(T134="","",VLOOKUP(X134,$S$23:$T$34,2,FALSE)),"") -> 
B135: =IF(E135="","",+C135-D135) ->  | C135: =IF(E135="","",+E135) ->  | D135: =IF(E135="","",IF(C135>44256,365,364)) ->  | W135: =IF(E135="","",IF(V135="EXCLUIDO",0,VLOOKUP(V135,$E$22:$S$34,15))) ->  | X135: =IF(E135="","",IF($I$4=0,0,IF($I$5=0,0,IF($I$6=0,0,IF($I$7=0,0,IF($I$8=0,0,MAX($I$4:$I$8))))))) ->  | Y135: =IF(E136="",IF(T135="","",VLOOKUP(X135,$S$23:$T$34,2,FALSE)),"") -> 
B136: =IF(E136="","",+C136-D136) ->  | C136: =IF(E136="","",+E136) ->  | D136: =IF(E136="","",IF(C136>44256,365,364)) ->  | W136: =IF(E136="","",IF(V136="EXCLUIDO",0,VLOOKUP(V136,$E$22:$S$34,15))) ->  | X136: =IF(E136="","",IF($I$4=0,0,IF($I$5=0,0,IF($I$6=0,0,IF($I$7=0,0,IF($I$8=0,0,MAX($I$4:$I$8))))))) ->  | Y136: =IF(E137="",IF(T136="","",VLOOKUP(X136,$S$23:$T$34,2,FALSE)),"") -> 
B137: =IF(E137="","",+C137-D137) ->  | C137: =IF(E137="","",+E137) ->  | D137: =IF(E137="","",IF(C137>44256,365,364)) ->  | W137: =IF(E137="","",IF(V137="EXCLUIDO",0,VLOOKUP(V137,$E$22:$S$34,15))) ->  | X137: =IF(E137="","",IF($I$4=0,0,IF($I$5=0,0,IF($I$6=0,0,IF($I$7=0,0,IF($I$8=0,0,MAX($I$4:$I$8))))))) ->  | Y137: =IF(E138="",IF(T137="","",VLOOKUP(X137,$S$23:$T$34,2,FALSE)),"") -> 
B138: =IF(E138="","",+C138-D138) ->  | C138: =IF(E138="","",+E138) ->  | D138: =IF(E138="","",IF(C138>44256,365,364)) ->  | W138: =IF(E138="","",IF(V138="EXCLUIDO",0,VLOOKUP(V138,$E$22:$S$34,15))) ->  | X138: =IF(E138="","",IF($I$4=0,0,IF($I$5=0,0,IF($I$6=0,0,IF($I$7=0,0,IF($I$8=0,0,MAX($I$4:$I$8))))))) ->  | Y138: =IF(E139="",IF(T138="","",VLOOKUP(X138,$S$23:$T$34,2,FALSE)),"") -> 
B139: =IF(E139="","",+C139-D139) ->  | C139: =IF(E139="","",+E139) ->  | D139: =IF(E139="","",IF(C139>44256,365,364)) ->  | W139: =IF(E139="","",IF(V139="EXCLUIDO",0,VLOOKUP(V139,$E$22:$S$34,15))) ->  | X139: =IF(E139="","",IF($I$4=0,0,IF($I$5=0,0,IF($I$6=0,0,IF($I$7=0,0,IF($I$8=0,0,MAX($I$4:$I$8))))))) ->  | Y139: =IF(E140="",IF(T139="","",VLOOKUP(X139,$S$23:$T$34,2,FALSE)),"") -> 
B140: =IF(E140="","",+C140-D140) ->  | C140: =IF(E140="","",+E140) ->  | D140: =IF(E140="","",IF(C140>44256,365,364)) ->  | W140: =IF(E140="","",IF(V140="EXCLUIDO",0,VLOOKUP(V140,$E$22:$S$34,15))) ->  | X140: =IF(E140="","",IF($I$4=0,0,IF($I$5=0,0,IF($I$6=0,0,IF($I$7=0,0,IF($I$8=0,0,MAX($I$4:$I$8))))))) ->  | Y140: =IF(E141="",IF(T140="","",VLOOKUP(X140,$S$23:$T$34,2,FALSE)),"") -> 
B141: =IF(E141="","",+C141-D141) ->  | C141: =IF(E141="","",+E141) ->  | D141: =IF(E141="","",IF(C141>44256,365,364)) ->  | W141: =IF(E141="","",IF(V141="EXCLUIDO",0,VLOOKUP(V141,$E$22:$S$34,15))) ->  | X141: =IF(E141="","",IF($I$4=0,0,IF($I$5=0,0,IF($I$6=0,0,IF($I$7=0,0,IF($I$8=0,0,MAX($I$4:$I$8))))))) ->  | Y141: =IF(E142="",IF(T141="","",VLOOKUP(X141,$S$23:$T$34,2,FALSE)),"") -> 
B142: =IF(E142="","",+C142-D142) ->  | C142: =IF(E142="","",+E142) ->  | D142: =IF(E142="","",IF(C142>44256,365,364)) ->  | W142: =IF(E142="","",IF(V142="EXCLUIDO",0,VLOOKUP(V142,$E$22:$S$34,15))) ->  | X142: =IF(E142="","",IF($I$4=0,0,IF($I$5=0,0,IF($I$6=0,0,IF($I$7=0,0,IF($I$8=0,0,MAX($I$4:$I$8))))))) ->  | Y142: =IF(E143="",IF(T142="","",VLOOKUP(X142,$S$23:$T$34,2,FALSE)),"") -> 
B143: =IF(E143="","",+C143-D143) ->  | C143: =IF(E143="","",+E143) ->  | D143: =IF(E143="","",IF(C143>44256,365,364)) ->  | W143: =IF(E143="","",IF(V143="EXCLUIDO",0,VLOOKUP(V143,$E$22:$S$34,15))) ->  | X143: =IF(E143="","",IF($I$4=0,0,IF($I$5=0,0,IF($I$6=0,0,IF($I$7=0,0,IF($I$8=0,0,MAX($I$4:$I$8))))))) ->  | Y143: =IF(E144="",IF(T143="","",VLOOKUP(X143,$S$23:$T$34,2,FALSE)),"") -> 
B144: =IF(E144="","",+C144-D144) ->  | C144: =IF(E144="","",+E144) ->  | D144: =IF(E144="","",IF(C144>44256,365,364)) ->  | W144: =IF(E144="","",IF(V144="EXCLUIDO",0,VLOOKUP(V144,$E$22:$S$34,15))) ->  | X144: =IF(E144="","",IF($I$4=0,0,IF($I$5=0,0,IF($I$6=0,0,IF($I$7=0,0,IF($I$8=0,0,MAX($I$4:$I$8))))))) ->  | Y144: =IF(E145="",IF(T144="","",VLOOKUP(X144,$S$23:$T$34,2,FALSE)),"") -> 
B145: =IF(E145="","",+C145-D145) ->  | C145: =IF(E145="","",+E145) ->  | D145: =IF(E145="","",IF(C145>44256,365,364)) ->  | W145: =IF(E145="","",IF(V145="EXCLUIDO",0,VLOOKUP(V145,$E$22:$S$34,15))) ->  | X145: =IF(E145="","",IF($I$4=0,0,IF($I$5=0,0,IF($I$6=0,0,IF($I$7=0,0,IF($I$8=0,0,MAX($I$4:$I$8))))))) ->  | Y145: =IF(E146="",IF(T145="","",VLOOKUP(X145,$S$23:$T$34,2,FALSE)),"") -> 
B146: =IF(E146="","",+C146-D146) ->  | C146: =IF(E146="","",+E146) ->  | D146: =IF(E146="","",IF(C146>44256,365,364)) ->  | W146: =IF(E146="","",IF(V146="EXCLUIDO",0,VLOOKUP(V146,$E$22:$S$34,15))) ->  | X146: =IF(E146="","",IF($I$4=0,0,IF($I$5=0,0,IF($I$6=0,0,IF($I$7=0,0,IF($I$8=0,0,MAX($I$4:$I$8))))))) ->  | Y146: =IF(E147="",IF(T146="","",VLOOKUP(X146,$S$23:$T$34,2,FALSE)),"") -> 
B147: =IF(E147="","",+C147-D147) ->  | C147: =IF(E147="","",+E147) ->  | D147: =IF(E147="","",IF(C147>44256,365,364)) ->  | W147: =IF(E147="","",IF(V147="EXCLUIDO",0,VLOOKUP(V147,$E$22:$S$34,15))) ->  | X147: =IF(E147="","",IF($I$4=0,0,IF($I$5=0,0,IF($I$6=0,0,IF($I$7=0,0,IF($I$8=0,0,MAX($I$4:$I$8))))))) ->  | Y147: =IF(E148="",IF(T147="","",VLOOKUP(X147,$S$23:$T$34,2,FALSE)),"") -> 
B148: =IF(E148="","",+C148-D148) ->  | C148: =IF(E148="","",+E148) ->  | D148: =IF(E148="","",IF(C148>44256,365,364)) ->  | W148: =IF(E148="","",IF(V148="EXCLUIDO",0,VLOOKUP(V148,$E$22:$S$34,15))) ->  | X148: =IF(E148="","",IF($I$4=0,0,IF($I$5=0,0,IF($I$6=0,0,IF($I$7=0,0,IF($I$8=0,0,MAX($I$4:$I$8))))))) ->  | Y148: =IF(E149="",IF(T148="","",VLOOKUP(X148,$S$23:$T$34,2,FALSE)),"") -> 
B149: =IF(E149="","",+C149-D149) ->  | C149: =IF(E149="","",+E149) ->  | D149: =IF(E149="","",IF(C149>44256,365,364)) ->  | W149: =IF(E149="","",IF(V149="EXCLUIDO",0,VLOOKUP(V149,$E$22:$S$34,15))) ->  | X149: =IF(E149="","",IF($I$4=0,0,IF($I$5=0,0,IF($I$6=0,0,IF($I$7=0,0,IF($I$8=0,0,MAX($I$4:$I$8))))))) ->  | Y149: =IF(E150="",IF(T149="","",VLOOKUP(X149,$S$23:$T$34,2,FALSE)),"") -> 
B150: =IF(E150="","",+C150-D150) ->  | C150: =IF(E150="","",+E150) ->  | D150: =IF(E150="","",IF(C150>44256,365,364)) ->  | W150: =IF(E150="","",IF(V150="EXCLUIDO",0,VLOOKUP(V150,$E$22:$S$34,15))) ->  | X150: =IF(E150="","",IF($I$4=0,0,IF($I$5=0,0,IF($I$6=0,0,IF($I$7=0,0,IF($I$8=0,0,MAX($I$4:$I$8))))))) ->  | Y150: =IF(E151="",IF(T150="","",VLOOKUP(X150,$S$23:$T$34,2,FALSE)),"") -> 
B151: =IF(E151="","",+C151-D151) ->  | C151: =IF(E151="","",+E151) ->  | D151: =IF(E151="","",IF(C151>44256,365,364)) ->  | W151: =IF(E151="","",IF(V151="EXCLUIDO",0,VLOOKUP(V151,$E$22:$S$34,15))) ->  | X151: =IF(E151="","",IF($I$4=0,0,IF($I$5=0,0,IF($I$6=0,0,IF($I$7=0,0,IF($I$8=0,0,MAX($I$4:$I$8))))))) ->  | Y151: =IF(E152="",IF(T151="","",VLOOKUP(X151,$S$23:$T$34,2,FALSE)),"") -> 
B152: =IF(E152="","",+C152-D152) ->  | C152: =IF(E152="","",+E152) ->  | D152: =IF(E152="","",IF(C152>44256,365,364)) ->  | W152: =IF(E152="","",IF(V152="EXCLUIDO",0,VLOOKUP(V152,$E$22:$S$34,15))) ->  | X152: =IF(E152="","",IF($I$4=0,0,IF($I$5=0,0,IF($I$6=0,0,IF($I$7=0,0,IF($I$8=0,0,MAX($I$4:$I$8))))))) ->  | Y152: =IF(E153="",IF(T152="","",VLOOKUP(X152,$S$23:$T$34,2,FALSE)),"") -> 
B153: =IF(E153="","",+C153-D153) ->  | C153: =IF(E153="","",+E153) ->  | D153: =IF(E153="","",IF(C153>44256,365,364)) ->  | W153: =IF(E153="","",IF(V153="EXCLUIDO",0,VLOOKUP(V153,$E$22:$S$34,15))) ->  | X153: =IF(E153="","",IF($I$4=0,0,IF($I$5=0,0,IF($I$6=0,0,IF($I$7=0,0,IF($I$8=0,0,MAX($I$4:$I$8))))))) ->  | Y153: =IF(E154="",IF(T153="","",VLOOKUP(X153,$S$23:$T$34,2,FALSE)),"") -> 
B154: =IF(E154="","",+C154-D154) ->  | C154: =IF(E154="","",+E154) ->  | D154: =IF(E154="","",IF(C154>44256,365,364)) ->  | W154: =IF(E154="","",IF(V154="EXCLUIDO",0,VLOOKUP(V154,$E$22:$S$34,15))) ->  | X154: =IF(E154="","",IF($I$4=0,0,IF($I$5=0,0,IF($I$6=0,0,IF($I$7=0,0,IF($I$8=0,0,MAX($I$4:$I$8))))))) ->  | Y154: =IF(E155="",IF(T154="","",VLOOKUP(X154,$S$23:$T$34,2,FALSE)),"") -> 
B155: =IF(E155="","",+C155-D155) ->  | C155: =IF(E155="","",+E155) ->  | D155: =IF(E155="","",IF(C155>44256,365,364)) ->  | W155: =IF(E155="","",IF(V155="EXCLUIDO",0,VLOOKUP(V155,$E$22:$S$34,15))) ->  | X155: =IF(E155="","",IF($I$4=0,0,IF($I$5=0,0,IF($I$6=0,0,IF($I$7=0,0,IF($I$8=0,0,MAX($I$4:$I$8))))))) ->  | Y155: =IF(E156="",IF(T155="","",VLOOKUP(X155,$S$23:$T$34,2,FALSE)),"") -> 
B156: =IF(E156="","",+C156-D156) ->  | C156: =IF(E156="","",+E156) ->  | D156: =IF(E156="","",IF(C156>44256,365,364)) ->  | W156: =IF(E156="","",IF(V156="EXCLUIDO",0,VLOOKUP(V156,$E$22:$S$34,15))) ->  | X156: =IF(E156="","",IF($I$4=0,0,IF($I$5=0,0,IF($I$6=0,0,IF($I$7=0,0,IF($I$8=0,0,MAX($I$4:$I$8))))))) ->  | Y156: =IF(E157="",IF(T156="","",VLOOKUP(X156,$S$23:$T$34,2,FALSE)),"") -> 
B157: =IF(E157="","",+C157-D157) ->  | C157: =IF(E157="","",+E157) ->  | D157: =IF(E157="","",IF(C157>44256,365,364)) ->  | W157: =IF(E157="","",IF(V157="EXCLUIDO",0,VLOOKUP(V157,$E$22:$S$34,15))) ->  | X157: =IF(E157="","",IF($I$4=0,0,IF($I$5=0,0,IF($I$6=0,0,IF($I$7=0,0,IF($I$8=0,0,MAX($I$4:$I$8))))))) ->  | Y157: =IF(E158="",IF(T157="","",VLOOKUP(X157,$S$23:$T$34,2,FALSE)),"") -> 
B158: =IF(E158="","",+C158-D158) ->  | C158: =IF(E158="","",+E158) ->  | D158: =IF(E158="","",IF(C158>44256,365,364)) ->  | W158: =IF(E158="","",IF(V158="EXCLUIDO",0,VLOOKUP(V158,$E$22:$S$34,15))) ->  | X158: =IF(E158="","",IF($I$4=0,0,IF($I$5=0,0,IF($I$6=0,0,IF($I$7=0,0,IF($I$8=0,0,MAX($I$4:$I$8))))))) ->  | Y158: =IF(E159="",IF(T158="","",VLOOKUP(X158,$S$23:$T$34,2,FALSE)),"") -> 
B159: =IF(E159="","",+C159-D159) ->  | C159: =IF(E159="","",+E159) ->  | D159: =IF(E159="","",IF(C159>44256,365,364)) ->  | W159: =IF(E159="","",IF(V159="EXCLUIDO",0,VLOOKUP(V159,$E$22:$S$34,15))) ->  | X159: =IF(E159="","",IF($I$4=0,0,IF($I$5=0,0,IF($I$6=0,0,IF($I$7=0,0,IF($I$8=0,0,MAX($I$4:$I$8))))))) ->  | Y159: =IF(E160="",IF(T159="","",VLOOKUP(X159,$S$23:$T$34,2,FALSE)),"") -> 
B160: =IF(E160="","",+C160-D160) ->  | C160: =IF(E160="","",+E160) ->  | D160: =IF(E160="","",IF(C160>44256,365,364)) ->  | W160: =IF(E160="","",IF(V160="EXCLUIDO",0,VLOOKUP(V160,$E$22:$S$34,15))) ->  | X160: =IF(E160="","",IF($I$4=0,0,IF($I$5=0,0,IF($I$6=0,0,IF($I$7=0,0,IF($I$8=0,0,MAX($I$4:$I$8))))))) ->  | Y160: =IF(E161="",IF(T160="","",VLOOKUP(X160,$S$23:$T$34,2,FALSE)),"") -> 
B161: =IF(E161="","",+C161-D161) ->  | C161: =IF(E161="","",+E161) ->  | D161: =IF(E161="","",IF(C161>44256,365,364)) ->  | W161: =IF(E161="","",IF(V161="EXCLUIDO",0,VLOOKUP(V161,$E$22:$S$34,15))) ->  | X161: =IF(E161="","",IF($I$4=0,0,IF($I$5=0,0,IF($I$6=0,0,IF($I$7=0,0,IF($I$8=0,0,MAX($I$4:$I$8))))))) ->  | Y161: =IF(E162="",IF(T161="","",VLOOKUP(X161,$S$23:$T$34,2,FALSE)),"") -> 
B162: =IF(E162="","",+C162-D162) ->  | C162: =IF(E162="","",+E162) ->  | D162: =IF(E162="","",IF(C162>44256,365,364)) ->  | W162: =IF(E162="","",IF(V162="EXCLUIDO",0,VLOOKUP(V162,$E$22:$S$34,15))) ->  | X162: =IF(E162="","",IF($I$4=0,0,IF($I$5=0,0,IF($I$6=0,0,IF($I$7=0,0,IF($I$8=0,0,MAX($I$4:$I$8))))))) ->  | Y162: =IF(E163="",IF(T162="","",VLOOKUP(X162,$S$23:$T$34,2,FALSE)),"") -> 
B163: =IF(E163="","",+C163-D163) ->  | C163: =IF(E163="","",+E163) ->  | D163: =IF(E163="","",IF(C163>44256,365,364)) ->  | W163: =IF(E163="","",IF(V163="EXCLUIDO",0,VLOOKUP(V163,$E$22:$S$34,15))) ->  | X163: =IF(E163="","",IF($I$4=0,0,IF($I$5=0,0,IF($I$6=0,0,IF($I$7=0,0,IF($I$8=0,0,MAX($I$4:$I$8))))))) ->  | Y163: =IF(E164="",IF(T163="","",VLOOKUP(X163,$S$23:$T$34,2,FALSE)),"") -> 
B164: =IF(E164="","",+C164-D164) ->  | C164: =IF(E164="","",+E164) ->  | D164: =IF(E164="","",IF(C164>44256,365,364)) ->  | W164: =IF(E164="","",IF(V164="EXCLUIDO",0,VLOOKUP(V164,$E$22:$S$34,15))) ->  | X164: =IF(E164="","",IF($I$4=0,0,IF($I$5=0,0,IF($I$6=0,0,IF($I$7=0,0,IF($I$8=0,0,MAX($I$4:$I$8))))))) ->  | Y164: =IF(E165="",IF(T164="","",VLOOKUP(X164,$S$23:$T$34,2,FALSE)),"") -> 
B165: =IF(E165="","",+C165-D165) ->  | C165: =IF(E165="","",+E165) ->  | D165: =IF(E165="","",IF(C165>44256,365,364)) ->  | W165: =IF(E165="","",IF(V165="EXCLUIDO",0,VLOOKUP(V165,$E$22:$S$34,15))) ->  | X165: =IF(E165="","",IF($I$4=0,0,IF($I$5=0,0,IF($I$6=0,0,IF($I$7=0,0,IF($I$8=0,0,MAX($I$4:$I$8))))))) ->  | Y165: =IF(E166="",IF(T165="","",VLOOKUP(X165,$S$23:$T$34,2,FALSE)),"") -> 
B166: =IF(E166="","",+C166-D166) ->  | C166: =IF(E166="","",+E166) ->  | D166: =IF(E166="","",IF(C166>44256,365,364)) ->  | W166: =IF(E166="","",IF(V166="EXCLUIDO",0,VLOOKUP(V166,$E$22:$S$34,15))) ->  | X166: =IF(E166="","",IF($I$4=0,0,IF($I$5=0,0,IF($I$6=0,0,IF($I$7=0,0,IF($I$8=0,0,MAX($I$4:$I$8))))))) ->  | Y166: =IF(E167="",IF(T166="","",VLOOKUP(X166,$S$23:$T$34,2,FALSE)),"") -> 
B167: =IF(E167="","",+C167-D167) ->  | C167: =IF(E167="","",+E167) ->  | D167: =IF(E167="","",IF(C167>44256,365,364)) ->  | W167: =IF(E167="","",IF(V167="EXCLUIDO",0,VLOOKUP(V167,$E$22:$S$34,15))) ->  | X167: =IF(E167="","",IF($I$4=0,0,IF($I$5=0,0,IF($I$6=0,0,IF($I$7=0,0,IF($I$8=0,0,MAX($I$4:$I$8))))))) ->  | Y167: =IF(E168="",IF(T167="","",VLOOKUP(X167,$S$23:$T$34,2,FALSE)),"") -> 
B168: =IF(E168="","",+C168-D168) ->  | C168: =IF(E168="","",+E168) ->  | D168: =IF(E168="","",IF(C168>44256,365,364)) ->  | W168: =IF(E168="","",IF(V168="EXCLUIDO",0,VLOOKUP(V168,$E$22:$S$34,15))) ->  | X168: =IF(E168="","",IF($I$4=0,0,IF($I$5=0,0,IF($I$6=0,0,IF($I$7=0,0,IF($I$8=0,0,MAX($I$4:$I$8))))))) ->  | Y168: =IF(E169="",IF(T168="","",VLOOKUP(X168,$S$23:$T$34,2,FALSE)),"") -> 
B169: =IF(E169="","",+C169-D169) ->  | C169: =IF(E169="","",+E169) ->  | D169: =IF(E169="","",IF(C169>44256,365,364)) ->  | W169: =IF(E169="","",IF(V169="EXCLUIDO",0,VLOOKUP(V169,$E$22:$S$34,15))) ->  | X169: =IF(E169="","",IF($I$4=0,0,IF($I$5=0,0,IF($I$6=0,0,IF($I$7=0,0,IF($I$8=0,0,MAX($I$4:$I$8))))))) ->  | Y169: =IF(E170="",IF(T169="","",VLOOKUP(X169,$S$23:$T$34,2,FALSE)),"") -> 
B170: =IF(E170="","",+C170-D170) ->  | C170: =IF(E170="","",+E170) ->  | D170: =IF(E170="","",IF(C170>44256,365,364)) ->  | W170: =IF(E170="","",IF(V170="EXCLUIDO",0,VLOOKUP(V170,$E$22:$S$34,15))) ->  | X170: =IF(E170="","",IF($I$4=0,0,IF($I$5=0,0,IF($I$6=0,0,IF($I$7=0,0,IF($I$8=0,0,MAX($I$4:$I$8))))))) ->  | Y170: =IF(E171="",IF(T170="","",VLOOKUP(X170,$S$23:$T$34,2,FALSE)),"") -> 
B171: =IF(E171="","",+C171-D171) ->  | C171: =IF(E171="","",+E171) ->  | D171: =IF(E171="","",IF(C171>44256,365,364)) ->  | W171: =IF(E171="","",IF(V171="EXCLUIDO",0,VLOOKUP(V171,$E$22:$S$34,15))) ->  | X171: =IF(E171="","",IF($I$4=0,0,IF($I$5=0,0,IF($I$6=0,0,IF($I$7=0,0,IF($I$8=0,0,MAX($I$4:$I$8))))))) ->  | Y171: =IF(E172="",IF(T171="","",VLOOKUP(X171,$S$23:$T$34,2,FALSE)),"") -> 
B172: =IF(E172="","",+C172-D172) ->  | C172: =IF(E172="","",+E172) ->  | D172: =IF(E172="","",IF(C172>44256,365,364)) ->  | W172: =IF(E172="","",IF(V172="EXCLUIDO",0,VLOOKUP(V172,$E$22:$S$34,15))) ->  | X172: =IF(E172="","",IF($I$4=0,0,IF($I$5=0,0,IF($I$6=0,0,IF($I$7=0,0,IF($I$8=0,0,MAX($I$4:$I$8))))))) ->  | Y172: =IF(E173="",IF(T172="","",VLOOKUP(X172,$S$23:$T$34,2,FALSE)),"") -> 
B173: =IF(E173="","",+C173-D173) ->  | C173: =IF(E173="","",+E173) ->  | D173: =IF(E173="","",IF(C173>44256,365,364)) ->  | W173: =IF(E173="","",IF(V173="EXCLUIDO",0,VLOOKUP(V173,$E$22:$S$34,15))) ->  | X173: =IF(E173="","",IF($I$4=0,0,IF($I$5=0,0,IF($I$6=0,0,IF($I$7=0,0,IF($I$8=0,0,MAX($I$4:$I$8))))))) ->  | Y173: =IF(E174="",IF(T173="","",VLOOKUP(X173,$S$23:$T$34,2,FALSE)),"") -> 
B174: =IF(E174="","",+C174-D174) ->  | C174: =IF(E174="","",+E174) ->  | D174: =IF(E174="","",IF(C174>44256,365,364)) ->  | W174: =IF(E174="","",IF(V174="EXCLUIDO",0,VLOOKUP(V174,$E$22:$S$34,15))) ->  | X174: =IF(E174="","",IF($I$4=0,0,IF($I$5=0,0,IF($I$6=0,0,IF($I$7=0,0,IF($I$8=0,0,MAX($I$4:$I$8))))))) ->  | Y174: =IF(E175="",IF(T174="","",VLOOKUP(X174,$S$23:$T$34,2,FALSE)),"") -> 
B175: =IF(E175="","",+C175-D175) ->  | C175: =IF(E175="","",+E175) ->  | D175: =IF(E175="","",IF(C175>44256,365,364)) ->  | W175: =IF(E175="","",IF(V175="EXCLUIDO",0,VLOOKUP(V175,$E$22:$S$34,15))) ->  | X175: =IF(E175="","",IF($I$4=0,0,IF($I$5=0,0,IF($I$6=0,0,IF($I$7=0,0,IF($I$8=0,0,MAX($I$4:$I$8))))))) ->  | Y175: =IF(E176="",IF(T175="","",VLOOKUP(X175,$S$23:$T$34,2,FALSE)),"") -> 
B176: =IF(E176="","",+C176-D176) ->  | C176: =IF(E176="","",+E176) ->  | D176: =IF(E176="","",IF(C176>44256,365,364)) ->  | W176: =IF(E176="","",IF(V176="EXCLUIDO",0,VLOOKUP(V176,$E$22:$S$34,15))) ->  | X176: =IF(E176="","",IF($I$4=0,0,IF($I$5=0,0,IF($I$6=0,0,IF($I$7=0,0,IF($I$8=0,0,MAX($I$4:$I$8))))))) ->  | Y176: =IF(E177="",IF(T176="","",VLOOKUP(X176,$S$23:$T$34,2,FALSE)),"") -> 
B177: =IF(E177="","",+C177-D177) ->  | C177: =IF(E177="","",+E177) ->  | D177: =IF(E177="","",IF(C177>44256,365,364)) ->  | W177: =IF(E177="","",IF(V177="EXCLUIDO",0,VLOOKUP(V177,$E$22:$S$34,15))) ->  | X177: =IF(E177="","",IF($I$4=0,0,IF($I$5=0,0,IF($I$6=0,0,IF($I$7=0,0,IF($I$8=0,0,MAX($I$4:$I$8))))))) ->  | Y177: =IF(E178="",IF(T177="","",VLOOKUP(X177,$S$23:$T$34,2,FALSE)),"") -> 
B178: =IF(E178="","",+C178-D178) ->  | C178: =IF(E178="","",+E178) ->  | D178: =IF(E178="","",IF(C178>44256,365,364)) ->  | W178: =IF(E178="","",IF(V178="EXCLUIDO",0,VLOOKUP(V178,$E$22:$S$34,15))) ->  | X178: =IF(E178="","",IF($I$4=0,0,IF($I$5=0,0,IF($I$6=0,0,IF($I$7=0,0,IF($I$8=0,0,MAX($I$4:$I$8))))))) ->  | Y178: =IF(E179="",IF(T178="","",VLOOKUP(X178,$S$23:$T$34,2,FALSE)),"") -> 
B179: =IF(E179="","",+C179-D179) ->  | C179: =IF(E179="","",+E179) ->  | D179: =IF(E179="","",IF(C179>44256,365,364)) ->  | W179: =IF(E179="","",IF(V179="EXCLUIDO",0,VLOOKUP(V179,$E$22:$S$34,15))) ->  | X179: =IF(E179="","",IF($I$4=0,0,IF($I$5=0,0,IF($I$6=0,0,IF($I$7=0,0,IF($I$8=0,0,MAX($I$4:$I$8))))))) ->  | Y179: =IF(E180="",IF(T179="","",VLOOKUP(X179,$S$23:$T$34,2,FALSE)),"") -> 
B180: =IF(E180="","",+C180-D180) ->  | C180: =IF(E180="","",+E180) ->  | D180: =IF(E180="","",IF(C180>44256,365,364)) ->  | W180: =IF(E180="","",IF(V180="EXCLUIDO",0,VLOOKUP(V180,$E$22:$S$34,15))) ->  | X180: =IF(E180="","",IF($I$4=0,0,IF($I$5=0,0,IF($I$6=0,0,IF($I$7=0,0,IF($I$8=0,0,MAX($I$4:$I$8))))))) ->  | Y180: =IF(E181="",IF(T180="","",VLOOKUP(X180,$S$23:$T$34,2,FALSE)),"") -> 
B181: =IF(E181="","",+C181-D181) ->  | C181: =IF(E181="","",+E181) ->  | D181: =IF(E181="","",IF(C181>44256,365,364)) ->  | W181: =IF(E181="","",IF(V181="EXCLUIDO",0,VLOOKUP(V181,$E$22:$S$34,15))) ->  | X181: =IF(E181="","",IF($I$4=0,0,IF($I$5=0,0,IF($I$6=0,0,IF($I$7=0,0,IF($I$8=0,0,MAX($I$4:$I$8))))))) ->  | Y181: =IF(E182="",IF(T181="","",VLOOKUP(X181,$S$23:$T$34,2,FALSE)),"") -> 
B182: =IF(E182="","",+C182-D182) ->  | C182: =IF(E182="","",+E182) ->  | D182: =IF(E182="","",IF(C182>44256,365,364)) ->  | W182: =IF(E182="","",IF(V182="EXCLUIDO",0,VLOOKUP(V182,$E$22:$S$34,15))) ->  | X182: =IF(E182="","",IF($I$4=0,0,IF($I$5=0,0,IF($I$6=0,0,IF($I$7=0,0,IF($I$8=0,0,MAX($I$4:$I$8))))))) ->  | Y182: =IF(E183="",IF(T182="","",VLOOKUP(X182,$S$23:$T$34,2,FALSE)),"") -> 
B183: =IF(E183="","",+C183-D183) ->  | C183: =IF(E183="","",+E183) ->  | D183: =IF(E183="","",IF(C183>44256,365,364)) ->  | W183: =IF(E183="","",IF(V183="EXCLUIDO",0,VLOOKUP(V183,$E$22:$S$34,15))) ->  | X183: =IF(E183="","",IF($I$4=0,0,IF($I$5=0,0,IF($I$6=0,0,IF($I$7=0,0,IF($I$8=0,0,MAX($I$4:$I$8))))))) ->  | Y183: =IF(E184="",IF(T183="","",VLOOKUP(X183,$S$23:$T$34,2,FALSE)),"") -> 
B184: =IF(E184="","",+C184-D184) ->  | C184: =IF(E184="","",+E184) ->  | D184: =IF(E184="","",IF(C184>44256,365,364)) ->  | W184: =IF(E184="","",IF(V184="EXCLUIDO",0,VLOOKUP(V184,$E$22:$S$34,15))) ->  | X184: =IF(E184="","",IF($I$4=0,0,IF($I$5=0,0,IF($I$6=0,0,IF($I$7=0,0,IF($I$8=0,0,MAX($I$4:$I$8))))))) ->  | Y184: =IF(E185="",IF(T184="","",VLOOKUP(X184,$S$23:$T$34,2,FALSE)),"") -> 
B185: =IF(E185="","",+C185-D185) ->  | C185: =IF(E185="","",+E185) ->  | D185: =IF(E185="","",IF(C185>44256,365,364)) ->  | W185: =IF(E185="","",IF(V185="EXCLUIDO",0,VLOOKUP(V185,$E$22:$S$34,15))) ->  | X185: =IF(E185="","",IF($I$4=0,0,IF($I$5=0,0,IF($I$6=0,0,IF($I$7=0,0,IF($I$8=0,0,MAX($I$4:$I$8))))))) ->  | Y185: =IF(E186="",IF(T185="","",VLOOKUP(X185,$S$23:$T$34,2,FALSE)),"") -> 
B186: =IF(E186="","",+C186-D186) ->  | C186: =IF(E186="","",+E186) ->  | D186: =IF(E186="","",IF(C186>44256,365,364)) ->  | W186: =IF(E186="","",IF(V186="EXCLUIDO",0,VLOOKUP(V186,$E$22:$S$34,15))) ->  | X186: =IF(E186="","",IF($I$4=0,0,IF($I$5=0,0,IF($I$6=0,0,IF($I$7=0,0,IF($I$8=0,0,MAX($I$4:$I$8))))))) ->  | Y186: =IF(E187="",IF(T186="","",VLOOKUP(X186,$S$23:$T$34,2,FALSE)),"") -> 
B187: =IF(E187="","",+C187-D187) ->  | C187: =IF(E187="","",+E187) ->  | D187: =IF(E187="","",IF(C187>44256,365,364)) ->  | W187: =IF(E187="","",IF(V187="EXCLUIDO",0,VLOOKUP(V187,$E$22:$S$34,15))) ->  | X187: =IF(E187="","",IF($I$4=0,0,IF($I$5=0,0,IF($I$6=0,0,IF($I$7=0,0,IF($I$8=0,0,MAX($I$4:$I$8))))))) ->  | Y187: =IF(E188="",IF(T187="","",VLOOKUP(X187,$S$23:$T$34,2,FALSE)),"") -> 
B188: =IF(E188="","",+C188-D188) ->  | C188: =IF(E188="","",+E188) ->  | D188: =IF(E188="","",IF(C188>44256,365,364)) ->  | W188: =IF(E188="","",IF(V188="EXCLUIDO",0,VLOOKUP(V188,$E$22:$S$34,15))) ->  | X188: =IF(E188="","",IF($I$4=0,0,IF($I$5=0,0,IF($I$6=0,0,IF($I$7=0,0,IF($I$8=0,0,MAX($I$4:$I$8))))))) ->  | Y188: =IF(E189="",IF(T188="","",VLOOKUP(X188,$S$23:$T$34,2,FALSE)),"") -> 
B189: =IF(E189="","",+C189-D189) ->  | C189: =IF(E189="","",+E189) ->  | D189: =IF(E189="","",IF(C189>44256,365,364)) ->  | W189: =IF(E189="","",IF(V189="EXCLUIDO",0,VLOOKUP(V189,$E$22:$S$34,15))) ->  | X189: =IF(E189="","",IF($I$4=0,0,IF($I$5=0,0,IF($I$6=0,0,IF($I$7=0,0,IF($I$8=0,0,MAX($I$4:$I$8))))))) ->  | Y189: =IF(E190="",IF(T189="","",VLOOKUP(X189,$S$23:$T$34,2,FALSE)),"") -> 
B190: =IF(E190="","",+C190-D190) ->  | C190: =IF(E190="","",+E190) ->  | D190: =IF(E190="","",IF(C190>44256,365,364)) ->  | W190: =IF(E190="","",IF(V190="EXCLUIDO",0,VLOOKUP(V190,$E$22:$S$34,15))) ->  | X190: =IF(E190="","",IF($I$4=0,0,IF($I$5=0,0,IF($I$6=0,0,IF($I$7=0,0,IF($I$8=0,0,MAX($I$4:$I$8))))))) ->  | Y190: =IF(E191="",IF(T190="","",VLOOKUP(X190,$S$23:$T$34,2,FALSE)),"") -> 
B191: =IF(E191="","",+C191-D191) ->  | C191: =IF(E191="","",+E191) ->  | D191: =IF(E191="","",IF(C191>44256,365,364)) ->  | W191: =IF(E191="","",IF(V191="EXCLUIDO",0,VLOOKUP(V191,$E$22:$S$34,15))) ->  | X191: =IF(E191="","",IF($I$4=0,0,IF($I$5=0,0,IF($I$6=0,0,IF($I$7=0,0,IF($I$8=0,0,MAX($I$4:$I$8))))))) ->  | Y191: =IF(E192="",IF(T191="","",VLOOKUP(X191,$S$23:$T$34,2,FALSE)),"") -> 
B192: =IF(E192="","",+C192-D192) ->  | C192: =IF(E192="","",+E192) ->  | D192: =IF(E192="","",IF(C192>44256,365,364)) ->  | W192: =IF(E192="","",IF(V192="EXCLUIDO",0,VLOOKUP(V192,$E$22:$S$34,15))) ->  | X192: =IF(E192="","",IF($I$4=0,0,IF($I$5=0,0,IF($I$6=0,0,IF($I$7=0,0,IF($I$8=0,0,MAX($I$4:$I$8))))))) ->  | Y192: =IF(E193="",IF(T192="","",VLOOKUP(X192,$S$23:$T$34,2,FALSE)),"") -> 
B193: =IF(E193="","",+C193-D193) ->  | C193: =IF(E193="","",+E193) ->  | D193: =IF(E193="","",IF(C193>44256,365,364)) ->  | W193: =IF(E193="","",IF(V193="EXCLUIDO",0,VLOOKUP(V193,$E$22:$S$34,15))) ->  | X193: =IF(E193="","",IF($I$4=0,0,IF($I$5=0,0,IF($I$6=0,0,IF($I$7=0,0,IF($I$8=0,0,MAX($I$4:$I$8))))))) ->  | Y193: =IF(E194="",IF(T193="","",VLOOKUP(X193,$S$23:$T$34,2,FALSE)),"") -> 
B194: =IF(E194="","",+C194-D194) ->  | C194: =IF(E194="","",+E194) ->  | D194: =IF(E194="","",IF(C194>44256,365,364)) ->  | W194: =IF(E194="","",IF(V194="EXCLUIDO",0,VLOOKUP(V194,$E$22:$S$34,15))) ->  | X194: =IF(E194="","",IF($I$4=0,0,IF($I$5=0,0,IF($I$6=0,0,IF($I$7=0,0,IF($I$8=0,0,MAX($I$4:$I$8))))))) ->  | Y194: =IF(E195="",IF(T194="","",VLOOKUP(X194,$S$23:$T$34,2,FALSE)),"") -> 
B195: =IF(E195="","",+C195-D195) ->  | C195: =IF(E195="","",+E195) ->  | D195: =IF(E195="","",IF(C195>44256,365,364)) ->  | W195: =IF(E195="","",IF(V195="EXCLUIDO",0,VLOOKUP(V195,$E$22:$S$34,15))) ->  | X195: =IF(E195="","",IF($I$4=0,0,IF($I$5=0,0,IF($I$6=0,0,IF($I$7=0,0,IF($I$8=0,0,MAX($I$4:$I$8))))))) ->  | Y195: =IF(E196="",IF(T195="","",VLOOKUP(X195,$S$23:$T$34,2,FALSE)),"") -> 
B196: =IF(E196="","",+C196-D196) ->  | C196: =IF(E196="","",+E196) ->  | D196: =IF(E196="","",IF(C196>44256,365,364)) ->  | W196: =IF(E196="","",IF(V196="EXCLUIDO",0,VLOOKUP(V196,$E$22:$S$34,15))) ->  | X196: =IF(E196="","",IF($I$4=0,0,IF($I$5=0,0,IF($I$6=0,0,IF($I$7=0,0,IF($I$8=0,0,MAX($I$4:$I$8))))))) ->  | Y196: =IF(E197="",IF(T196="","",VLOOKUP(X196,$S$23:$T$34,2,FALSE)),"") -> 
B197: =IF(E197="","",+C197-D197) ->  | C197: =IF(E197="","",+E197) ->  | D197: =IF(E197="","",IF(C197>44256,365,364)) ->  | W197: =IF(E197="","",IF(V197="EXCLUIDO",0,VLOOKUP(V197,$E$22:$S$34,15))) ->  | X197: =IF(E197="","",IF($I$4=0,0,IF($I$5=0,0,IF($I$6=0,0,IF($I$7=0,0,IF($I$8=0,0,MAX($I$4:$I$8))))))) ->  | Y197: =IF(E198="",IF(T197="","",VLOOKUP(X197,$S$23:$T$34,2,FALSE)),"") -> 
B198: =IF(E198="","",+C198-D198) ->  | C198: =IF(E198="","",+E198) ->  | D198: =IF(E198="","",IF(C198>44256,365,364)) ->  | W198: =IF(E198="","",IF(V198="EXCLUIDO",0,VLOOKUP(V198,$E$22:$S$34,15))) ->  | X198: =IF(E198="","",IF($I$4=0,0,IF($I$5=0,0,IF($I$6=0,0,IF($I$7=0,0,IF($I$8=0,0,MAX($I$4:$I$8))))))) ->  | Y198: =IF(E199="",IF(T198="","",VLOOKUP(X198,$S$23:$T$34,2,FALSE)),"") -> 
B199: =IF(E199="","",+C199-D199) ->  | C199: =IF(E199="","",+E199) ->  | D199: =IF(E199="","",IF(C199>44256,365,364)) ->  | W199: =IF(E199="","",IF(V199="EXCLUIDO",0,VLOOKUP(V199,$E$22:$S$34,15))) ->  | X199: =IF(E199="","",IF($I$4=0,0,IF($I$5=0,0,IF($I$6=0,0,IF($I$7=0,0,IF($I$8=0,0,MAX($I$4:$I$8))))))) ->  | Y199: =IF(E200="",IF(T199="","",VLOOKUP(X199,$S$23:$T$34,2,FALSE)),"") -> 
B200: =IF(E200="","",+C200-D200) ->  | C200: =IF(E200="","",+E200) ->  | D200: =IF(E200="","",IF(C200>44256,365,364)) ->  | W200: =IF(E200="","",IF(V200="EXCLUIDO",0,VLOOKUP(V200,$E$22:$S$34,15))) ->  | X200: =IF(E200="","",IF($I$4=0,0,IF($I$5=0,0,IF($I$6=0,0,IF($I$7=0,0,IF($I$8=0,0,MAX($I$4:$I$8))))))) ->  | Y200: =IF(E201="",IF(T200="","",VLOOKUP(X200,$S$23:$T$34,2,FALSE)),"") -> 
... 9816 more rows
